{"text_format":"1","workbook":"xlsx","n_sheets":13,"sheets":["AER only","Instructions","Contents","Business & other details","3.1 Revenue","3.2 Operating expenditure","3.2.3 Provisions","3.3 Assets (RAB)","3.4 Operational data","3.5 Physical assets","3.6 Quality of services","3.7 Operating environment","NSP Amendments"],"not_rendered":{"charts":0,"images":5,"macros":1,"external_links":1,"defined_names":382,"comments":1,"pivot_tables":0},"unopened":[],"bounds":{"document_bytes":16777216,"sheet_cells":100000,"rows_first":2000,"rows_last":500,"rows_between":2000,"halvings":0,"cell_chars":16384,"cell_head_chars":4096},"cells_cut":0,"cells_raw":0,"read":"whole","date_system":"1900"}

{"sheet":"AER only","index":0,"n_rows":147,"n_cols":40,"rows_kept":147,"cut":false,"hidden":true,"merged":[[52,34,54,34],[0,1,0,11],[4,28,4,38],[5,28,5,31],[5,34,5,38],[50,22,50,26],[50,28,50,31],[51,1,51,5],[51,14,51,21],[51,22,51,26],[51,28,51,31],[52,2,52,3],[55,34,59,34],[63,34,64,34],[69,14,69,15],[69,22,69,25],[107,1,107,8]]}
[null,"Data in these columns used for data validation and database purposes."]
[null,"Date last modified:","2017-01-16","added (Albury and Victora) for AGN"]
[null,null,"2016-10-17","updated TransGrid's correct legal name, corrected TasNetworks (T) to June financial year"]
[null,null,"2017-02-01","inserted Power and Water, added NRs (dms_FeederCat_1 and dms_FeederCat_2)"]
[null,null,"2017-03-03","inserted AEMO as a business",null,null,null,null,null,null,null,null,null,null,null,null,null,null,null,null,null,null,null,null,null,null,null,null,"FOR ELECTRICITY BUSINESSES ONLY"]
[null,null,null,null,null,null,null,null,null,null,null,null,null,null,null,null,null,null,null,null,null,null,null,null,null,null,null,null,"Feeder Types",null,null,null,"TasNetworks (D)","MAIFI flag","Feeder Names"]
[null,null,null,null,null,null,null,null,null,null,null,null,null,null,null,null,null,null,null,null,null,null,null,null,null,null,null,null,"CBD","Urban","Short rural","long rural","EXTRA"]
[null,"dms_TradingName_List","dms_TradingNameFull_List","dms_ABN_List","dms_JurisdictionList","dms_Sector_List","dms_Segment_List","dms_FormControl_List","dms_RPT_List","dms_RPTMonth_List","dms_CRCPlength_List","dms_FRCPlength_List","dms_663_List","dms_DeterminationRef_List","dms_Addr1_List","dms_Addr2_List","dms_Suburb_List","dms_State_List","dms_PostCode_List","dms_PAddr1_List","dms_PAddr2_List","dms_PSuburb_List","dms_PState_List","dms_PPostCode_List","dms_ContactName1_List","dms_ContactPh1_List","dms_ContactEmail_List","Column1","dms_CBD_flag","dms_Urban_flag","dms_ShortRural_flag","dms_LongRural_flag","dms_FeederType_5_flag","dms_MAIFI_flag_List","dms_FeederName_1","dms_FeederName_2","dms_FeederName_3","dms_FeederName_4","dms_FeederName_5"]
[null,"ActewAGL Distribution","ActewAGL Distribution",76670568688,"ACT","Electricity","Distribution","Revenue cap","Financial","June",5,5,5,"2014-19 Distribution Determination","40 Bunda Street",null,"CANBERRA","ACT","2600","GPO BOX 366",null,"CANBERRA","ACT",2601,"Robert Walker","02 6248 3847","robert.walker@actewagle.com.au",null,"NO","YES","YES","NO","NO",null,"CBD","Urban","Short rural","Long rural",null,"ActewAGL Distribution"]
[null,"ActewAGL Distribution (Tx Assets)","ActewAGL Distribution (Tx Assets)",76670568688,"ACT","Electricity","Distribution","Revenue cap","Financial","June",5,5,5,"distribution determination","40 Bunda Street",null,"CANBERRA","ACT","2600","GPO BOX 366",null,"CANBERRA","ACT",2601,"Robert Walker","02 6248 3847","robert.walker@actewagle.com.au",null,null,null,null,null,null,null,"CBD","Urban","Short rural","Long rural",null,"ActewAGL Distribution (Tx Assets)"]
[null,"ActewAGL Gas","ActewAGL Gas",76670568688,"ACT","Gas","Distribution","Weighted average price cap","Financial","June",5,5,"x",null,"40 Bunda Street",null,"CANBERRA","ACT","2600","GPO BOX 366",null,"CANBERRA","ACT",2601,"Philip Deamer","02 6248 3438","GasAAReview@actewagl.com.au",null,null,null,null,null,null,null,null,null,null,null,null,"ActewAGL Gas"]
[null,"AEMO","Australian Energy Market Operator Ltd",94072010327,"Vic","Electricity","Transmission","-","Financial","March",5,5,"x","-","Level 22","530 Collins Street","MELBOURNE","VIC","3000","GPO Box 2008",null,"MELBOURNE","VIC","3001",null,null,null,null,null,null,null,null,null,null,null,null,null,null,null,"AEMO"]
[null,"AGN (Albury and Victoria)","Australian Gas Networks Limited (reporting data for Albury and Victoria)",19078551685,"Vic","Gas","Distribution","Weighted average price cap","Calendar","December",5,5,"x",null,"Level 6","400 King William Street","ADELAIDE","SA","5000","PO Box 6468","Halifax Street","ADELAIDE","SA","5000","Craig de Laine","08 8418 1129 ","craig.delaine@agn.com.au",null,null,null,null,null,null,null,"CBD","Urban","Short rural","Long rural",null,"AGN (Albury)"]
[null,"AGN (Albury)","Australian Gas Networks Limited (reporting data for Albury)",19078551685,"Vic","Gas","Distribution","Weighted average price cap","Calendar","December",5,5,"x",null,"Level 6","400 King William Street","ADELAIDE","SA","5000","PO Box 6468","Halifax Street","ADELAIDE","SA","5000","Craig de Laine","08 8418 1129 ","craig.delaine@agn.com.au",null,null,null,null,null,null,null,"CBD","Urban","Short rural","Long rural"]
[null,"AGN (SA)","Australian Gas Networks Limited (reporting data for SA)",19078551685,"SA","Gas","Distribution","Weighted average price cap","Financial","June",5,5,5,"distribution determination","Level 6","400 King William Street","ADELAIDE","SA","5000","PO Box 6468","Halifax Street","ADELAIDE","SA","5000","Craig de Laine","08 8418 1129 ","craig.delaine@agn.com.au",null,null,null,null,null,null,null,null,null,null,null,null,"AGN (SA)"]
[null,"AGN (Victoria)","Australian Gas Networks Limited (reporting data for Victoria)",19078551685,"Vic","Gas","Distribution","Weighted average price cap","Calendar","December",5,5,"x",null,null,null,null,null,null,null,null,null,null,null,null,null,null,null,null,null,null,null,null,null,null,null,null,null,null,"AGN (Victoria)"]
[null,"Amadeus","APT Pipelines (NT) Pty Ltd",39009737393,"NT","Gas","Transmission","Weighted average price cap","Financial","June",5,5,"x","n/a","Level 19, HSBC Building","580 George Street","SYDNEY","NSW","2000","Level 19, HSBC Building","580 George Street","SYDNEY","NSW","2000","Alexandra Curran","02 9275 0020","alexandra.curran@apa.com.au",null,null,null,null,null,null,null,null,null,null,null,null,"Amadeus"]
[null,"APA GasNet","APA GasNet Australia (Operations) Pty Ltd","065083009","Vic","Gas","Transmission","Weighted average price cap","Calendar","December",5,5,"x",null,"Level 19, HSBC Building","580 George Street","SYDNEY","NSW","2000","PO Box R41",null,"ROYAL EXCHANGE","NSW","1225",null,"02 9693 0000",null,null,null,null,null,null,null,null,null,null,null,null,null,"APA GasNet"]
[null,"Ausgrid","Ausgrid",78508211731,"NSW","Electricity","Distribution","Revenue cap","Financial","June",5,5,5,"2014-19 Distribution Determination","570 George St",null,"SYDNEY","NSW",2000,"GPO Box 4009",null,"SYDNEY","NSW","2001","John Thomson","(02) 9269 2312","john.thomson@ausgrid.com.au",null,"YES","YES","YES","YES","NO",null,"CBD","Urban","Short rural","Long rural",null,"Ausgrid"]
[null,"Ausgrid (Tx Assets)","Ausgrid (Tx Assets)",67505337385,"NSW","Electricity","Distribution","Revenue cap","Financial","June",5,5,5,"distribution determination",null,null,null,"NSW",null,null,null,null,null,null,null,null,null,null,null,null,null,null,null,null,"CBD","Urban","Short rural","Long rural",null,"Ausgrid (Tx Assets)"]
[null,"AusNet (D)","AusNet Electricity Services Pty Ltd",91064651118,"Vic","Electricity","Distribution","Revenue cap","Calendar","December",5,5,2,"2016-20 Distribution Determination","Level 32","2 Southbank Boulevard","SOUTHBANK","Vic","3006","Locked Bag 14051",null,"MELBOURNE CITY MAIL CENTRE","VIC",8001,"Hannah Williams","03 9683 4088","hwilliams@powercor.com.au",null,null,"YES","YES","YES","NO",null,"CBD","Urban","Short rural","Long rural",null,"AusNet (D)"]
[null,"AusNet (Gas)","AusNet Gas Services","086015036","Vic","Gas","Distribution","Weighted average price cap","Calendar","December",5,5,"X",null,null,null,null,null,null,null,null,null,null,null,null,null,null,null,null,null,null,null,null,null,null,null,null,null,null,"AusNet (Gas)"]
[null,"AusNet (T)","Ausnet Services (Transmission) Ltd",48116124362,"Vic","Electricity","Transmission","Revenue cap","Financial","March",5,5,2,"transmission determination","Level 32","2 Southbank Boulevard","SOUTHBANK","Vic","3006","Locked Bag 14051",null,"MELBOURNE CITY MAIL CENTRE","Vic","8001","Clare Thompson","03 9695 6670","clare.e.thompson@ausnetservices.com.au",null,null,null,null,null,null,null,"CBD","Urban","Short rural","Long rural",null,"AusNet (T)"]
[null,"Australian Distribution Co.","Australian Distribution Co.",11222333444,"-","Electricity","Distribution","Revenue cap","Financial","June",5,5,2,"distribution determination","123 Straight Street",null,"SYDNEY","NSW","2000","PO Box 123",null,"SYDNEY","NSW",2000,"Bob Smith","02 1234 5678","bob@auselec.net.au",null,null,null,null,null,null,null,"CBD","Urban","Short rural","Long rural",null,"Australian Distribution Co."]
[null,"Australian Distribution Co. (Vic)","Australian Distribution Co. (Victoria)",11222333444,"Vic","Electricity","Distribution","Revenue cap","Calendar","December",5,5,2,"distribution determination","123 Straight Street",null,"MELBOURNE","Vic","3000","PO Box 123",null,"MELBOURNE","VIC","3000","Bob Smith","02 1234 5678","bob@auselec.net.au",null,null,null,null,null,null,null,"CBD","Urban","Short rural","Long rural",null,"Australian Distribution Co. (Vic)"]
[null,"Australian Transmission Co.","Australian Transmission Co.",11222333444,"-","Electricity","Transmission","Revenue cap","Financial","June",5,5,5,"transmission determination","123 Straight Street",null,"SYDNEY","NSW","2000","PO Box 123",null,"SYDNEY","NSW",2000,"Bob Smith","02 1234 5678","bob@auselec.net.au",null,null,null,null,null,null,null,"CBD","Urban","Short rural","Long rural",null,"Australian Transmission Co."]
[null,"CitiPower","CitiPower",76064651056,"Vic","Electricity","Distribution","Revenue cap","Calendar","December",5,5,2,"2016-20 Distribution Determination","40 Market Street",null,"MELBOURNE","Vic","3000","Locked Bag 14090",null,"MELBOURNE","VIC",8001,"Hannah Williams","03 9683 4088","hwilliams@powercor.com.au",null,"YES","YES","NO","NO","NO",null,"CBD","Urban","Short rural","Long rural",null,"CitiPower"]
[null,"Directlink","Directlink",16779340889,"Qld","Electricity","Transmission","Revenue cap","Financial","June",9,5,5,"transmission determination","Level 19, HSBC Building","580 George Street","SYDNEY","NSW","2000","PO Box R41",null,"ROYAL EXCHANGE","NSW","1225","Scott Young","02 9275 0031","scott.young@apa.com.au",null,null,null,null,null,null,null,"CBD","Urban","Short rural","Long rural",null,"Directlink"]
[null,"ElectraNet","ElectraNet",41094482416,"SA","Electricity","Transmission","Revenue cap","Financial","June",5,5,5,"transmission determination","52-55 East Terrace","Rymill Park","ADELAIDE","SA","5000","PO Box 7096","Hutt Street Post Office","ADELAIDE","SA",5000,"Bill Jackson","08 8404 7969","jackson.bill@electranet.com.au",null,null,null,null,null,null,null,"CBD","Urban","Short rural","Long rural",null,"ElectraNet"]
[null,"Endeavour Energy","Endeavour Energy",59253130878,"NSW","Electricity","Distribution","Revenue cap","Financial","June",5,5,5,"2014-19 Distribution Determination","51 Huntingwood Drive",null,"HUNTINGWOOD","NSW","2148","PO Box 811",null,"SEVEN HILLS","NSW","1730","Jon Hocking","02 9853 4386 / 0407 348 156","Jon.Hocking@Endeavourenergy.com.au",null,"NO","YES","YES","YES","NO",null,"CBD","Urban","Short rural","Long rural",null,"Endeavour Energy"]
[null,"Energex","Energex",40078849055,"Qld","Electricity","Distribution","Revenue cap","Financial","June",5,5,5,"2015-20 Distribution Determination","26 Reddacliff Street",null,"NEWSTEAD","Qld","4006","26 Reddacliff Street",null,"NEWSTEAD","QLD","4006","Nicola Roscoe","07 3664 5891","nicolaroscoe@energex.com.au",null,"YES","YES","YES","NO","NO",null,"CBD","Urban","Short rural","Long rural",null,"Energex"]
[null,"Ergon Energy","Ergon Energy",50087646062,"Qld","Electricity","Distribution","Revenue cap","Financial","June",5,5,5,"2015-20 Distribution Determination","22 Walker Street",null,"TOWNSVILLE","Qld","4810","Po Box 264",null,"FORTITUDE VALLEY","QLD",4006,"Jenny Doyle, Group Manager Regulatory Affairs","(07) 3851 6416","jenny.doyle@ergon.com.au",null,"NO","YES","YES","YES","NO",null,"CBD","Urban","Short rural","Long rural",null,"Ergon Energy"]
[null,"Essential Energy","Essential Energy",37428185226,"NSW","Electricity","Distribution","Revenue cap","Financial","June",5,5,5,"2014-19 Distribution Determination","8 Buller Street",null,"PORT MACQUARIE","NSW","2444","PO Box 5730",null,"PORT MACQUARIE","NSW","2444","Catherine Waddell","02 6338 3553","catherine.waddell@essentialenergy.com.au",null,null,null,"YES","YES","NO",null,"CBD","Urban","Short rural","Long rural",null,"Essential Energy"]
[null,"Jemena Electricity","Jemena Electricity",82064651083,"Vic","Electricity","Distribution","Revenue cap","Calendar","December",5,5,2,"2016-20 Distribution Determination","Level 16","567 Collins Street","MELBOURNE","VIC","3000","PO Box 16182",null,"MELBOURNE","VIC",8001,"Matthew Serpell","03 9173 8231","matthew.serpell@jemena.com.au",null,null,null,"YES","NO","NO",null,"CBD","Urban","Short rural","Long rural",null,"Jemena Electricity"]
[null,"JGN","Jemena Gas Networks (NSW) Ltd","003 004 322","NSW","Gas","Distribution","Weighted average price cap","Financial","June",5,5,null,null,null,null,null,null,null,null,null,null,null,null,null,null,null,null,null,null,null,null,null,null,null,null,null,null,null,"JGN"]
[null,"Multinet Gas","Multinet Gas (DB No.1) Pty Ltd (ACN 086 026 986), Multinet Gas (DB No.2) Pty Ltd (ACN 086 230 122)","086026986","Vic","Gas","Distribution","Weighted average price cap","Calendar","December",5,5,"x",null,"6 Nexus Court",null,"MULGRAVE","Vic","3149",null,null,null,null,null,"Stephanie McDougall","03 8846 9538","Stephanie.McDougall@ue.com.au",null,null,null,null,null,null,null,null,null,null,null,null,"Multinet Gas"]
[null,"Murraylink","Murraylink",79181207909,"SA","Electricity","Transmission","Revenue cap","Financial","June",5,5,5,"transmission determination","Level 19","580 George Street","SYDNEY","NSW","2000",null,null,null,null,null,"Scott Young","02 9275 0031","scott.young@apa.com.au",null,null,null,null,null,null,null,"CBD","Urban","Short rural","Long rural",null,"Murraylink"]
[null,"Power and Water","Power and Water Corporation",15947352360,"NT","Electricity","Distribution","Revenue cap","Financial","June",5,5,"x","distribution determination","GPO Box 1921",null,"DARWIN","NT","0801","GPO Box 1921",null,"DARWIN","NT","0801","Lucy Moon","08 8924 5822","Lucy.Moon@powerwater.com.au",null,"YES","YES","YES","YES","NO"]
[null,"Powercor Australia","Powercor Australia",89064651109,"Vic","Electricity","Distribution","Revenue cap","Calendar","December",5,5,2,"2016-20 Distribution Determination","40 Market Street",null,"MELBOURNE","Vic","3000","Locked bag 14090",null,"MELBOURNE","VIC",8001,"Hannah Williams","03 9683 4088","hwilliams@powercor.com.au",null,null,null,"YES","YES","NO",null,"CBD","Urban","Short rural","Long rural",null,"Powercor Australia"]
[null,"Powerlink","Queensland Electricity Transmission Corporation Limited trading as Powerlink Queensland",82078849233,"Qld","Electricity","Transmission","Revenue cap","Financial","June",5,5,5,"transmission determination","33 Harold St",null,"VIRGINIA","Qld","4014","PO Box 1193",null,"VIRGINIA","QLD",4014,"Jennifer Harris","07 3860 2667","jharris@powerlink.com.au",null,null,null,null,null,null,null,"CBD","Urban","Short rural","Long rural",null,"Powerlink"]
[null,"Roma to Brisbane Pipeline","APT Petroleum Pipelines Limited t/a Roma to Brisbane Pipeline","009 737 393","Qld","Gas","Transmission","Weighted average price cap","Financial","June",5,5,"x","n/a","580 George Street",null,"SYDNEY","NSW","2000","PO Box R41",null,"ROYAL EXCHANGE","NSW","1225","Mark Allen","02 9275 0010","mark.allen@apa.com.au",null,null,null,null,null,null,null,"CBD","Urban","Short rural","Long rural",null,"Roma to Brisbane Pipeline"]
[null,"SA Power Networks","SA Power Networks",13332330749,"SA","Electricity","Distribution","Revenue cap","Financial","June",5,5,5,"2015-20 Distribution Determination","1 Anzac Highway",null,"KESWICK","SA","5035","GPO Box 77",null,"ADELAIDE","SA","5000","Richard Sibly","08 8404 5613","richard.sibly@sapowernetworks.com.au",null,null,null,"YES","YES","NO",null,"CBD","Urban","Short rural","Long rural",null,"SA Power Networks"]
[null,"TasNetworks (D)","TasNetworks (D)",24167357299,"Tas","Electricity","Distribution","Revenue cap","Financial","June",5,5,5,"distribution determination","1-7 Maria Street",null,"LENAH VALLEY","Tas","7008","PO Box 606",null,"MOONAH","Tas","7009","John Sayers","03 6271 6469","john.sayers@tasnetworks.com.au",null,null,null,"YES","YES","YES",null,"Critical Infrastructure","High density commercial","Urban","High density rural","Low density rural","TasNetworks (D)"]
[null,"TasNetworks (T)","TasNetworks (T)",24167357299,"Tas","Electricity","Transmission","Revenue cap","Financial","June",5,5,5,"transmission determination","1-7 Maria Street",null,"LENAH VALLEY","Tas","7008","PO Box 606",null,"MOONAH","Tas","7009","John Sayers","03 6271 6469","john.sayers@tasnetworks.com.au",null,null,null,null,null,null,null,"CBD","Urban","Short rural","Long rural",null,"TasNetworks (T)"]
[null,"TransGrid","NSW Electricity Networks Operations Pty Ltd trading as TransGrid",609169959,"NSW","Electricity","Transmission","Revenue cap","Financial","June",5,4,5,"transmission determination","180 Thomas Street",null,"SYDNEY","NSW","2000","PO Box A1000",null,"SYDNEY SOUTH","NSW","1235","Garrie Chubb","0408 210 221","garrie.chubb@transgrid.com.au",null,null,null,null,null,null,null,"CBD","Urban","Short rural","Long rural",null,"TransGrid"]
[null,"United Energy","United Energy",70064651029,"Vic","Electricity","Distribution","Revenue cap","Calendar","December",5,5,2,"2016-20 Distribution Determination","Level 3","6 Nexus Court","MULGRAVE","Vic","3149","PO Box 449",null,"MOUNT WAVERLEY","VIC",3170,"Mathew Abraham","03 8846 9758","mathew.abraham@ue.com.au",null,null,null,"YES","NO","NO",null,"CBD","Urban","Short rural","Long rural",null,"United Energy"]
[null,"Western Power (D)","Western Power (D)",18540492861,"WA","Electricity","Distribution","Revenue cap","Financial","June",12,4,"x","distribution determination","363 Wellington Street",null,"PERTH","WA","6000","GPO Box L921",null,"PERTH","WA",6842,"Judy Hunter","08 9326 6239","judy.hunter@westernpower.com.au",null,null,null,"YES","YES","NO","NO","CBD","Urban","Short rural","Long rural",null,"Western Power (D)"]
[null,"Western Power (T)","Western Power (T)",18540492861,"WA","Electricity","Transmission","Revenue cap","Financial","June",12,4,"x","transmission determination","363 Wellington Street",null,"PERTH","WA","6000","GPO Box L921",null,"PERTH","WA",6842,"Judy Hunter","08 9326 6239","judy.hunter@westernpower.com.au",null,null,null,"YES","YES","NO",null,"CBD","Urban","Short rural","Long rural",null,"Western Power (T)"]
[]
[]
[null,null,null,null,null,null,null,null,null,null,null,null,null,null,null,null,null,null,null,null,null,null,"For EB & Reset RINs only",null,null,null,null,null,"For AARs only"]
[null,"The Reg Year Ending (dms_RYE) must be set to the last year of the regulatory period. For forecast data is is usually (FRCP_y5) for actual it is a single year (CRY). For historical actual data the RYE will need to be set manually in the business details sheet by setting the dms_Multiyear_flag to 1 and putting the correct value in 'dms_Specified_FinalYear. See cells C67:C68",null,null,null,null,{"$f":"IF(dms_RPT=\"financial\",VALUE(LEFT(CRCP_y1,4)-1)&\"-\"&TEXT(VALUE(RIGHT(CRCP_y1,2)-1),\"00\"),VALUE(LEFT(CRCP_y1,4)-1))","v":"2010-11"},null,null,null,null,null,null,"Drop down selector box for CA & Reset RINs.","For CA & Reset RINs only",null,null,null,null,null,null,null,"for DNSP only",null,null,null,null,null,"For DNSPs only",null,null,null,null,null,"Reason for interruption","dms_Reason_Interruption_Detailed","dms_Reason_Interruption"]
[null,"dms_Model_List ","DELETE NR 'CRY' IF NOT AN ANNUAL RIN (EB, CA , ARR)",null,"dms_RYE_Formula_Result",null,null,null,null,null,null,null,null,"dms_0203_ProjectType","dms_020303_01_UOM","dms_020501_01_UOM","dms_020501_02_UOM","dms_020501_03_UOM","dms_020501_04_UOM","dms_020603_01_UOM","dms_040102_01_UOM","dms_040102_04_UOM","dms_030601_01_UOM","dms_030601_02_UOM","dms_030701_01_UOM","dms_030702_01_UOM","dms_030703_01_UOM",null,"dms_030605_UOM","dms_03060703_UOM",null,null,null,null,"Animal","Animal impact","Animal"]
[null,"ARR","ANNUAL REPORTING STATEMENT",null,{"$f":"LEFT(dms_SingleYear_FinalYear_Result,2)&RIGHT(dms_SingleYear_FinalYear_Result,2)","v":"2017"},"=LEFT(dms_SingleYear_FinalYear_Result,2)&RIGHT(dms_SingleYear_FinalYear_Result,2)",null,"Formula errors are OK",null,null,null,null,null,"New line on new route - single circuit","Circuit line length in km","0's","0's","0's","0's","0's","0's","days","minutes/customer","minutes/customer","Customer / km","%","km",null,"number","number",null,null,null,null,null,"Animal nesting/burrowing, etc and other","Asset failure"]
[null,"CA","CATEGORY ANALYSIS",null,{"$f":"LEFT(dms_SingleYear_FinalYear_Result,2)&RIGHT(dms_SingleYear_FinalYear_Result,2)","v":"2017"},"=LEFT(dms_SingleYear_FinalYear_Result,2)&RIGHT(dms_SingleYear_FinalYear_Result,2)",null,"Formula errors are OK",null,null,null,null,null,"New line on new route - dual circuit","Circuit line length in km","0's","0's","0's","0's","0's","0's","0's","minutes/customer","minutes/customer","MWh/customer","Number of spans",null,null,"number","number",null,null,null,null,null,"Other","Other"]
[null,"CPI","CPI",null,null,null,null,null,null,null,null,null,null,"New line on new route - other","Circuit line length in km","MVA added","MVA added","MVA added","MVA added","0's","0's","$0s","interruptions/customer","interruptions/customer","kVA / customer","Number of spans",null,null,"number","number",null,null,null,null,"Asset failure","LV","Overloads"]
[null,"EB","ECONOMIC BENCHMARKING",null,{"$f":"LEFT(dms_SingleYear_FinalYear_Result,2)&RIGHT(dms_SingleYear_FinalYear_Result,2)","v":"2017"},"=LEFT(dms_SingleYear_FinalYear_Result,2)&RIGHT(dms_SingleYear_FinalYear_Result,2)",null,"Formula errors are OK",null,null,null,null,null,"Line rebuild over existing route - single circuit","Circuit line length in km","0's","0's","0's","0's","0's","$0s","0's","interruptions/customer","interruptions/customer",null,"Number of spans",null,null,"number","number",null,null,null,null,null,"Distribution substation","Planned"]
[null,"PTRM","POST TAX REVENUE MODEL",null,{"$f":"LEFT(dms_MultiYear_FinalYear_Result,2)&RIGHT(dms_MultiYear_FinalYear_Result,2)","v":"2021"},"=LEFT(dms_MultiYear_FinalYear_Result,2)&RIGHT(dms_MultiYear_FinalYear_Result,2)",null,null,null,null,null,null,null,"Line rebuild over existing route - dual circuit","Number","total spend $0s","total spend $0s","total spend $0s","total spend $0s","(per cent)",null,null,null,null,null,"Number of spans",null,null,"number","(per cent)",null,null,null,null,null,"HV","Network business"]
[null,"Reset","REGULATORY REPORTING STATEMENT",null,{"$f":"LEFT(dms_MultiYear_FinalYear_Result,2)&RIGHT(dms_MultiYear_FinalYear_Result,2)","v":"2021"},"=LEFT(dms_MultiYear_FinalYear_Result,2)&RIGHT(dms_MultiYear_FinalYear_Result,2)",null,"Formula errors are OK",null,null,null,null,null,"Reconductor - Single circuit","Number","net circuit km added","net circuit km added","net circuit km added","net circuit km added",null,null,null,null,null,null,"Years",null,null,"number",null,null,null,null,null,null,"Zone substation","Third party"]
[null,"RFM","ROLL FORWARD MODEL",null,{"$f":"LEFT(dms_CRCP_FinalYear_Result,2)&RIGHT(dms_CRCP_FinalYear_Result,2)","v":"2017"},"=LEFT(dms_CRCP_FinalYear_Result,2)&RIGHT(dms_CRCP_FinalYear_Result,2)",null,null,null,null,null,null,null,"Reconductor - Dual circuit","Number","total spend $0s","total spend $0s","total spend $0s","total spend $0s",null,null,null,null,null,null,"Years",null,null,"number",null,null,null,null,null,null,"Subtransmission","Unknown"]
[null,"WACC","WEIGHTED AVERAGE COST OF CAPITAL",null,{"$f":"LEFT(dms_MultiYear_FinalYear_Result,2)&RIGHT(dms_MultiYear_FinalYear_Result,2)","v":"2021"},"=LEFT(dms_MultiYear_FinalYear_Result,2)&RIGHT(dms_MultiYear_FinalYear_Result,2)",null,null,null,null,null,null,null,"Other",null,"net circuit km added","net circuit km added","net circuit km added","net circuit km added",null,null,null,null,null,null,"Trees",null,null,"number",null,null,null,null,null,"Other","insert description of 'other'","Vegetation"]
[null,null,null,null,null,null,null,null,null,null,null,null,null,null,null,"total spend $0s","total spend $0s","total spend $0s","total spend $0s",null,null,null,null,null,null,"Trees",null,null,"number",null,null,null,null,null,"Overloads","-","Weather"]
[null,"dms_DataQuality_List",null,null,null,null,null,null,null,null,null,null,null,null,null,"0's",null,"$0s",null,null,null,null,null,null,null,"Defects",null,null,"number",null,null,null,null,null,"Planned","-","2 - STPIS Exclusion (3.3)(a)"]
[null,"Actual",null,null,null,null,null,null,null,null,null,null,null,null,null,"0's",null,null,null,null,null,null,null,null,null,"Defects",null,null,"number",null,null,null,null,null,"Network business","Network error","3 - STPIS Exclusion (3.3)(a)"]
[null,"Estimate",null,null,null,null,null,null,null,null,null,null,null,null,null,"0's",null,null,null,null,null,null,null,null,null,"Spans",null,null,"number",null,null,null,null,null,null,"Switching and protection error","4 - STPIS Exclusion (3.3)(a)"]
[null,"Consolidated",null,null,null,null,null,null,null,null,null,null,null,null,null,"$0s",null,null,null,null,null,null,null,null,null,"km",null,null,"(per cent)",null,null,null,null,null,"Third party","Fire","5 - STPIS Exclusion (3.3)(a)"]
[null,"Recast",null,null,null,null,null,null,null,null,null,null,null,null,null,null,null,null,null,null,null,null,null,null,null,"Spans",null,null,"(per cent)","",null,null,null,null,null,"Other","6 - STPIS Exclusion (3.3)(a)"]
[null,"Public",null,null,null,null,null,null,null,null,null,null,null,null,null,null,null,null,null,null,null,null,null,null,null,null,null,null,null,null,null,null,null,null,null,"Dig-in","7 - STPIS Exclusion (3.3)(a)"]
[null,null,null,null,null,null,null,null,null,null,null,null,null,null,null,null,null,null,null,null,null,null,null,null,null,null,null,null,null,null,null,null,null,null,null,"Unauthorised access"]
[null,"For all files either AER or business needs to be able to specify the type of submission","For PTRM & RFM templates we must provide a choice in case they change their form of control - otherwise it is drawn from the business specific lookup table above.",null,null,null,null,null,null,null,null,null,null,null,"For PTRM files - this field set the text for the named range \"DMS_Xfactor\" which in all cases is simply the text \"x factors\" - this saves putting in each old gas PTRM file ",null,null,null,null,null,null,null,"for TNSP only",null,null,null,null,null,null,null,null,null,null,null,null,"Vehicle impact"]
[null,"dms_SourceList","dms_FormControl_Choices",null,null,null,null,null,null,null,null,null,null,null,"DMS_Xfactor",null,null,null,null,null,null,null,"dms_030601_01_UOM",null,"dms_030701_01_UOM","dms_030702_01_UOM",null,null,null,null,null,null,null,null,"Unknown","Unknown"]
[null,"After appeal","Revenue cap",null,null,null,null,null,null,null,null,null,null,null,"x factors",null,null,null,null,null,null,null,"%",null,"Number of spans","km",null,null,null,null,null,null,null,null,"Vegetation","Blow-in/Fall-in - NSP responsibility"]
[null,"Draft decision","Revenue yield",null,null,null,null,null,null,null,null,null,null,null,null,null,null,null,null,null,null,null,"number",null,"Years","%",null,null,null,null,null,null,null,null,null,"Grow-in - NSP responsibility"]
[null,"Final decision","Weighted average price cap",null,null,null,null,null,null,null,null,null,null,null,null,null,null,null,null,null,null,null,"number",null,"Trees","km",null,null,null,null,null,null,null,null,null,"Blow-in/Fall-in - Other responsible party"]
[null,"PTRM update 1",null,null,null,null,null,null,null,null,null,null,null,null,null,null,null,null,null,null,null,null,"%",null,"Defects","number",null,null,null,null,null,null,null,null,null,"Grow-in - Other responsible party"]
[null,"PTRM update 2",null,null,null,null,null,null,null,null,null,null,null,null,null,null,null,null,null,null,null,null,"number",null,"Number of spans",null,null,null,null,null,null,null,null,null,"Weather"]
[null,"PTRM update 3",null,null,null,null,null,null,null,null,null,null,null,null,null,null,null,null,null,null,null,null,"number",null,"km",null,null,null,null,null,null,null,null,null,"2 - STPIS Exclusion (3.3)(a)"]
[null,"PTRM update 4",null,null,null,null,null,null,null,null,null,null,null,null,null,null,null,null,null,null,null,null,"%",null,"km",null,null,null,null,null,null,null,null,null,"3 - STPIS Exclusion (3.3)(a)"]
[null,"PTRM update 5",null,null,null,null,null,null,null,null,null,null,null,null,null,null,null,null,null,null,null,null,"number",null,"Number of spans",null,null,null,null,null,null,null,null,null,"4 - STPIS Exclusion (3.3)(a)"]
[null,"PTRM update 6",null,null,null,null,null,null,null,null,null,null,null,null,null,null,null,null,null,null,null,null,"number",null,null,null,null,null,null,null,null,null,null,null,"5 - STPIS Exclusion (3.3)(a)"]
[null,"PTRM update 7",null,null,null,null,null,null,null,null,null,null,null,null,null,null,null,null,null,null,null,null,"%",null,null,null,null,null,null,null,null,null,null,null,"6 - STPIS Exclusion (3.3)(a)"]
[null,"Regulatory proposal",null,null,null,null,null,null,null,null,null,null,null,null,null,null,null,null,null,null,null,null,"number",null,null,null,null,null,null,null,null,null,null,null,"7 - STPIS Exclusion (3.3)(a)"]
[null,"Reporting",null,null,null,null,null,null,null,null,null,null,null,null,null,null,null,null,null,null,null,null,"%"]
[null,"Revised regulatory proposal",null,null,null,null,null,null,null,null,null,null,null,null,null,null,null,null,null,null,null,null,"number"]
[null,null,null,null,null,null,null,null,null,null,null,null,null,null,null,null,null,null,null,null,null,null,"%"]
[null,null,null,null,null,null,null,null,null,null,null,null,null,null,null,null,null,null,null,null,null,null,"number"]
[]
[]
[]
[null,"These are indeces and lookup values for various dates. All step from the value placed in FRCP_y1 on the business and other details worksheet",null,null,null,null,null,null,null,null,null,"These date tables are currently used in the Recast templates to provide column headings and conditional formatting"]
[null,"dms_FRCPlength_Num_List","dms_FinalYear_List","dms_CRCPlength_Num_List","dms_CFinalYear_List","dms_FRCP_years",null,"dms_CRCP_years",null,"dms_CRCP_index",null,"CRY from input cell on business sheet","CRY - financial","dms_FinYears","CRY calendar","dms_CalYears"]
[null,1,"dms_FRCP_y1",1,"CRCP_y1",{"$f":"FRCP_y1","v":"2016-17"},"dms_FRCP_y1",{"$f":"IF(dms_RPT=\"financial\",VALUE(LEFT(dms_FRCP_y1,4)-1)&\"-\"&TEXT(VALUE(MID(dms_FRCP_y1,3,2)),\"00\"),VALUE(LEFT(dms_FRCP_y1,4)-1))","v":"2015-16"},"dms_CRCP_yZ",1,null,{"$f":"CRY","v":"2016-17"},{"$f":"VALUE(LEFT(CRY,4))&\"-\"&TEXT(MID(CRY,3,2)+1,\"00\")","v":"2016-17"},"dms_CRYf_y1",{"$f":"VALUE(LEFT(CRY,4)+1)","v":2017},"dms_CRYc_y1"]
[null,2,"dms_FRCP_y2",2,"CRCP_y2",{"$f":"IF(dms_RPT=\"financial\",VALUE(LEFT(dms_FRCP_y1,4)+1)&\"-\"&TEXT(VALUE(RIGHT(dms_FRCP_y1,2)+1),\"00\"),VALUE(LEFT(dms_FRCP_y1,4)+1))","v":"2017-18"},"dms_FRCP_y2",{"$f":"IF(dms_RPT=\"financial\",VALUE(LEFT(dms_CRCP_yZ,4)-1)&\"-\"&TEXT(VALUE(MID(dms_CRCP_yZ,3,2)),\"00\"),VALUE(LEFT(dms_CRCP_yZ,4)-1))","v":"2014-15"},"dms_CRCP_yY",2,null,null,{"$f":"VALUE(LEFT(dms_CRYf_y1,4)+1)&\"-\"&TEXT(MID(dms_CRYf_y1,3,2)+2,\"00\")","v":"2017-18"},"dms_CRYf_y2",{"$f":"VALUE(LEFT(dms_CRYc_y1,4)+1)","v":2018},"dms_CRYc_y2"]
[null,3,"dms_FRCP_y3",3,"CRCP_y3",{"$f":"IF(dms_RPT=\"financial\",VALUE(LEFT(dms_FRCP_y2,4)+1)&\"-\"&TEXT(VALUE(RIGHT(dms_FRCP_y2,2)+1),\"00\"),VALUE(LEFT(dms_FRCP_y2,4)+1))","v":"2018-19"},"dms_FRCP_y3",{"$f":"IF(dms_RPT=\"financial\",VALUE(LEFT(dms_CRCP_yY,4)-1)&\"-\"&TEXT(VALUE(MID(dms_CRCP_yY,3,2)),\"00\"),VALUE(LEFT(dms_CRCP_yY,4)-1))","v":"2013-14"},"dms_CRCP_yX",3,null,null,{"$f":"VALUE(LEFT(dms_CRYf_y2,4)+1)&\"-\"&TEXT(MID(dms_CRYf_y2,3,2)+2,\"00\")","v":"2018-19"},"dms_CRYf_y3",{"$f":"VALUE(LEFT(dms_CRYc_y2,4)+1)","v":2019},"dms_CRYc_y3"]
[null,4,"dms_FRCP_y4",4,"CRCP_y4",{"$f":"IF(dms_RPT=\"financial\",VALUE(LEFT(dms_FRCP_y3,4)+1)&\"-\"&TEXT(VALUE(RIGHT(dms_FRCP_y3,2)+1),\"00\"),VALUE(LEFT(dms_FRCP_y3,4)+1))","v":"2019-20"},"dms_FRCP_y4",{"$f":"IF(dms_RPT=\"financial\",VALUE(LEFT(dms_CRCP_yX,4)-1)&\"-\"&TEXT(VALUE(MID(dms_CRCP_yX,3,2)),\"00\"),VALUE(LEFT(dms_CRCP_yX,4)-1))","v":"2012-13"},"dms_CRCP_yW",4,null,null,{"$f":"VALUE(LEFT(dms_CRYf_y3,4)+1)&\"-\"&TEXT(MID(dms_CRYf_y3,3,2)+2,\"00\")","v":"2019-20"},"dms_CRYf_y4",{"$f":"VALUE(LEFT(dms_CRYc_y3,4)+1)","v":2020},"dms_CRYc_y4"]
[null,5,"dms_FRCP_y5",5,"CRCP_y5",{"$f":"IF(dms_RPT=\"financial\",VALUE(LEFT(dms_FRCP_y4,4)+1)&\"-\"&TEXT(VALUE(RIGHT(dms_FRCP_y4,2)+1),\"00\"),VALUE(LEFT(dms_FRCP_y4,4)+1))","v":"2020-21"},"dms_FRCP_y5",{"$f":"IF(dms_RPT=\"financial\",VALUE(LEFT(dms_CRCP_yW,4)-1)&\"-\"&TEXT(VALUE(MID(dms_CRCP_yW,3,2)),\"00\"),VALUE(LEFT(dms_CRCP_yW,4)-1))","v":"2011-12"},"dms_CRCP_yV",5,null,null,{"$f":"VALUE(LEFT(dms_CRYf_y4,4)+1)&\"-\"&TEXT(MID(dms_CRYf_y4,3,2)+2,\"00\")","v":"2020-21"},"dms_CRYf_y5",{"$f":"VALUE(LEFT(dms_CRYc_y4,4)+1)","v":2021},"dms_CRYc_y5"]
[null,6,"dms_FRCP_y6",6,"CRCP_y6",{"$f":"IF(dms_RPT=\"financial\",VALUE(LEFT(dms_FRCP_y5,4)+1)&\"-\"&TEXT(VALUE(RIGHT(dms_FRCP_y5,2)+1),\"00\"),VALUE(LEFT(dms_FRCP_y5,4)+1))","v":"2021-22"},"dms_FRCP_y6",{"$f":"IF(dms_RPT=\"financial\",VALUE(LEFT(dms_CRCP_yV,4)-1)&\"-\"&TEXT(VALUE(MID(dms_CRCP_yV,3,2)),\"00\"),VALUE(LEFT(dms_CRCP_yV,4)-1))","v":"2010-11"},"dms_CRCP_yU",6,null,null,{"$f":"VALUE(LEFT(dms_CRYf_y5,4)+1)&\"-\"&TEXT(MID(dms_CRYf_y5,3,2)+2,\"00\")","v":"2021-22"},"dms_CRYf_y6",{"$f":"VALUE(LEFT(dms_CRYc_y5,4)+1)","v":2022},"dms_CRYc_y6"]
[null,7,"dms_FRCP_y7",7,"CRCP_y7",{"$f":"IF(dms_RPT=\"financial\",VALUE(LEFT(dms_FRCP_y6,4)+1)&\"-\"&TEXT(VALUE(RIGHT(dms_FRCP_y6,2)+1),\"00\"),VALUE(LEFT(dms_FRCP_y6,4)+1))","v":"2022-23"},"dms_FRCP_y7",{"$f":"IF(dms_RPT=\"financial\",VALUE(LEFT(dms_CRCP_yU,4)-1)&\"-\"&TEXT(VALUE(MID(dms_CRCP_yU,3,2)),\"00\"),VALUE(LEFT(dms_CRCP_yU,4)-1))","v":"2009-10"},"dms_CRCP_yT",7,null,null,{"$f":"VALUE(LEFT(dms_CRYf_y6,4)+1)&\"-\"&TEXT(MID(dms_CRYf_y6,3,2)+2,\"00\")","v":"2022-23"},"dms_CRYf_y7",{"$f":"VALUE(LEFT(dms_CRYc_y6,4)+1)","v":2023},"dms_CRYc_y7"]
[null,8,"dms_FRCP_y8",8,"CRCP_y8",{"$f":"IF(dms_RPT=\"financial\",VALUE(LEFT(dms_FRCP_y7,4)+1)&\"-\"&TEXT(VALUE(RIGHT(dms_FRCP_y7,2)+1),\"00\"),VALUE(LEFT(dms_FRCP_y7,4)+1))","v":"2023-24"},"dms_FRCP_y8",{"$f":"IF(dms_RPT=\"financial\",VALUE(LEFT(dms_CRCP_yT,4)-1)&\"-\"&TEXT(VALUE(MID(dms_CRCP_yT,3,2)),\"00\"),VALUE(LEFT(dms_CRCP_yT,4)-1))","v":"2008-09"},"dms_CRCP_yS",8,null,null,{"$f":"VALUE(LEFT(dms_CRYf_y7,4)+1)&\"-\"&TEXT(MID(dms_CRYf_y7,3,2)+2,\"00\")","v":"2023-24"},"dms_CRYf_y8",{"$f":"VALUE(LEFT(dms_CRYc_y7,4)+1)","v":2024},"dms_CRYc_y8"]
[null,9,"dms_FRCP_y9",9,"CRCP_y9",{"$f":"IF(dms_RPT=\"financial\",VALUE(LEFT(dms_FRCP_y8,4)+1)&\"-\"&TEXT(VALUE(RIGHT(dms_FRCP_y8,2)+1),\"00\"),VALUE(LEFT(dms_FRCP_y8,4)+1))","v":"2024-25"},"dms_FRCP_y9",{"$f":"IF(dms_RPT=\"financial\",VALUE(LEFT(dms_CRCP_yS,4)-1)&\"-\"&TEXT(VALUE(MID(dms_CRCP_yS,3,2)),\"00\"),VALUE(LEFT(dms_CRCP_yS,4)-1))","v":"2007-08"},"dms_CRCP_yR",9,null,null,{"$f":"VALUE(LEFT(dms_CRYf_y8,4)+1)&\"-\"&TEXT(MID(dms_CRYf_y8,3,2)+2,\"00\")","v":"2024-25"},"dms_CRYf_y9",{"$f":"VALUE(LEFT(dms_CRYc_y8,4)+1)","v":2025},"dms_CRYc_y9"]
[null,10,"dms_FRCP_y10",10,"CRCP_y10",{"$f":"IF(dms_RPT=\"financial\",VALUE(LEFT(dms_FRCP_y9,4)+1)&\"-\"&TEXT(VALUE(RIGHT(dms_FRCP_y9,2)+1),\"00\"),VALUE(LEFT(dms_FRCP_y9,4)+1))","v":"2025-26"},"dms_FRCP_y10",{"$f":"IF(dms_RPT=\"financial\",VALUE(LEFT(dms_CRCP_yR,4)-1)&\"-\"&TEXT(VALUE(MID(dms_CRCP_yR,3,2)),\"00\"),VALUE(LEFT(dms_CRCP_yR,4)-1))","v":"2006-07"},"dms_CRCP_yQ",10,null,null,{"$f":"VALUE(LEFT(dms_CRYf_y9,4)+1)&\"-\"&TEXT(MID(dms_CRYf_y9,3,2)+2,\"00\")","v":"2025-26"},"dms_CRYf_y10",{"$f":"VALUE(LEFT(dms_CRYc_y9,4)+1)","v":2026},"dms_CRYc_y10"]
[null,11,"dms_FRCP_y11",11,"CRCP_y11",{"$f":"IF(dms_RPT=\"financial\",VALUE(LEFT(dms_FRCP_y10,4)+1)&\"-\"&TEXT(VALUE(RIGHT(dms_FRCP_y10,2)+1),\"00\"),VALUE(LEFT(dms_FRCP_y10,4)+1))","v":"2026-27"},"dms_FRCP_y11",{"$f":"IF(dms_RPT=\"financial\",VALUE(LEFT(dms_CRCP_yQ,4)-1)&\"-\"&TEXT(VALUE(MID(dms_CRCP_yQ,3,2)),\"00\"),VALUE(LEFT(dms_CRCP_yQ,4)-1))","v":"2005-06"},"dms_CRCP_yP",11,null,null,{"$f":"VALUE(LEFT(dms_CRYf_y10,4)+1)&\"-\"&TEXT(MID(dms_CRYf_y10,3,2)+2,\"00\")","v":"2026-27"},"dms_CRYf_y11",{"$f":"VALUE(LEFT(dms_CRYc_y10,4)+1)","v":2027},"dms_CRYc_y11"]
[null,12,"dms_FRCP_y12",12,"CRCP_y12",{"$f":"IF(dms_RPT=\"financial\",VALUE(LEFT(dms_FRCP_y11,4)+1)&\"-\"&TEXT(VALUE(RIGHT(dms_FRCP_y11,2)+1),\"00\"),VALUE(LEFT(dms_FRCP_y11,4)+1))","v":"2027-28"},"dms_FRCP_y12",{"$f":"IF(dms_RPT=\"financial\",VALUE(LEFT(dms_CRCP_yP,4)-1)&\"-\"&TEXT(VALUE(MID(dms_CRCP_yP,3,2)),\"00\"),VALUE(LEFT(dms_CRCP_yP,4)-1))","v":"2004-05"},"dms_CRCP_yO",12,null,null,{"$f":"VALUE(LEFT(dms_CRYf_y11,4)+1)&\"-\"&TEXT(MID(dms_CRYf_y11,3,2)+2,\"00\")","v":"2027-28"},"dms_CRYf_y12",{"$f":"VALUE(LEFT(dms_CRYc_y11,4)+1)","v":2028},"dms_CRYc_y12"]
[null,13,"dms_FRCP_y13",13,"CRCP_y13",{"$f":"IF(dms_RPT=\"financial\",VALUE(LEFT(dms_FRCP_y12,4)+1)&\"-\"&TEXT(VALUE(RIGHT(dms_FRCP_y12,2)+1),\"00\"),VALUE(LEFT(dms_FRCP_y12,4)+1))","v":"2028-29"},"dms_FRCP_y13",{"$f":"IF(dms_RPT=\"financial\",VALUE(LEFT(dms_CRCP_yO,4)-1)&\"-\"&TEXT(VALUE(MID(dms_CRCP_yO,3,2)),\"00\"),VALUE(LEFT(dms_CRCP_yO,4)-1))","v":"2003-04"},"dms_CRCP_yN",13,null,null,{"$f":"VALUE(LEFT(dms_CRYf_y12,4)+1)&\"-\"&TEXT(MID(dms_CRYf_y12,3,2)+2,\"00\")","v":"2028-29"},"dms_CRYf_y13",{"$f":"VALUE(LEFT(dms_CRYc_y12,4)+1)","v":2029},"dms_CRYc_y13"]
[null,14,"dms_FRCP_y14",14,"CRCP_y14",{"$f":"IF(dms_RPT=\"financial\",VALUE(LEFT(dms_FRCP_y13,4)+1)&\"-\"&TEXT(VALUE(RIGHT(dms_FRCP_y13,2)+1),\"00\"),VALUE(LEFT(dms_FRCP_y13,4)+1))","v":"2029-30"},"dms_FRCP_y14",{"$f":"IF(dms_RPT=\"financial\",VALUE(LEFT(dms_CRCP_yN,4)-1)&\"-\"&TEXT(VALUE(MID(dms_CRCP_yN,3,2)),\"00\"),VALUE(LEFT(dms_CRCP_yN,4)-1))","v":"2002-03"},"dms_CRCP_yM",14,null,null,{"$f":"VALUE(LEFT(dms_CRYf_y13,4)+1)&\"-\"&TEXT(MID(dms_CRYf_y13,3,2)+2,\"00\")","v":"2029-30"},"dms_CRYf_y14",{"$f":"VALUE(LEFT(dms_CRYc_y13,4)+1)","v":2030},"dms_CRYc_y14"]
[null,15,"dms_FRCP_y15",15,"CRCP_y15",{"$f":"IF(dms_RPT=\"financial\",VALUE(LEFT(dms_FRCP_y14,4)+1)&\"-\"&TEXT(VALUE(RIGHT(dms_FRCP_y14,2)+1),\"00\"),VALUE(LEFT(dms_FRCP_y14,4)+1))","v":"2030-31"},"dms_FRCP_y15",{"$f":"IF(dms_RPT=\"financial\",VALUE(LEFT(dms_CRCP_yM,4)-1)&\"-\"&TEXT(VALUE(MID(dms_CRCP_yM,3,2)),\"00\"),VALUE(LEFT(dms_CRCP_yM,4)-1))","v":"2001-02"},"dms_CRCP_yL",15,null,null,{"$f":"VALUE(LEFT(dms_CRYf_y14,4)+1)&\"-\"&TEXT(MID(dms_CRYf_y14,3,2)+2,\"00\")","v":"2030-31"},"dms_CRYf_y15",{"$f":"VALUE(LEFT(dms_CRYc_y14,4)+1)","v":2031},"dms_CRYc_y15"]
[null,null,null,null,null,null,null,null,null,null,null,null,{"$f":"VALUE(LEFT(dms_CRYf_y15,4)+1)&\"-\"&TEXT(MID(dms_CRYf_y15,3,2)+2,\"00\")","v":"2031-32"},"dms_CRYf_y16",{"$f":"VALUE(LEFT(dms_CRYc_y15,4)+1)","v":2032},"dms_CRYc_y16"]
[null,"These are drop down lists for businesses to select the correct FRCP_y1 on the business and other details worksheet.\nThis also populates the column headings in the worksheets",null,null,null,null,null,null,null,null,null,null,{"$f":"VALUE(LEFT(dms_CRYf_y16,4)+1)&\"-\"&TEXT(MID(dms_CRYf_y16,3,2)+2,\"00\")","v":"2032-33"},"dms_CRYf_y17",{"$f":"VALUE(LEFT(dms_CRYc_y16,4)+1)","v":2033},"dms_CRYc_y17"]
[null,"dms_RCP_fyear_list","dms_CRY_ListF","dms_CRY_ListC","dms_RCP_cyear_list","dms_FRCP_fyear_list","dms_FRCP_ListF","dms_FRCP_ListC","dms_FRCP_cyear_list",null,null,null,{"$f":"VALUE(LEFT(dms_CRYf_y17,4)+1)&\"-\"&TEXT(MID(dms_CRYf_y17,3,2)+2,\"00\")","v":"2033-34"},"dms_CRYf_y18",{"$f":"VALUE(LEFT(dms_CRYc_y17,4)+1)","v":2034},"dms_CRYc_y18"]
[null,"dms_fy1","2006-07",2007,"dms_cy1","dms_frcp_fy1","2015-16",2016,"dms_crcp_cy1",null,null,null,{"$f":"VALUE(LEFT(dms_CRYf_y18,4)+1)&\"-\"&TEXT(MID(dms_CRYf_y18,3,2)+2,\"00\")","v":"2034-35"},"dms_CRYf_y19",{"$f":"VALUE(LEFT(dms_CRYc_y18,4)+1)","v":2035},"dms_CRYc_y19"]
[null,"dms_fy2","2007-08","2008","dms_cy2","dms_frcp_fy2","2016-17",2017,"dms_crcp_cy2",null,null,null,{"$f":"VALUE(LEFT(dms_CRYf_y19,4)+1)&\"-\"&TEXT(MID(dms_CRYf_y19,3,2)+2,\"00\")","v":"2035-36"},"dms_CRYf_y20",{"$f":"VALUE(LEFT(dms_CRYc_y19,4)+1)","v":2036},"dms_CRYc_y20"]
[null,"dms_fy3","2008-09","2009","dms_cy3","dms_frcp_fy3","2017-18",2018,"dms_crcp_cy3"]
[null,"dms_fy4","2009-10","2010","dms_cy4","dms_frcp_fy4","2018-19",2019,"dms_crcp_cy4"]
[null,"dms_fy5","2010-11","2011","dms_cy5","dms_frcp_fy5","2019-20",2020,"dms_crcp_cy5"]
[null,"dms_fy6","2011-12","2012","dms_cy6","dms_frcp_fy6","2020-21",2021,"dms_crcp_cy6"]
[null,"dms_fy7","2012-13","2013","dms_cy7","dms_frcp_fy7","2021-22",2022,"dms_crcp_cy7"]
[null,"dms_fy8","2013-14","2014","dms_cy8","dms_frcp_fy8","2022-23",2023,"dms_crcp_cy8",null,null,"2005-06","2006"]
[null,"dms_fy9","2014-15","2015","dms_cy9","dms_frcp_fy9","2023-24",2024,"dms_crcp_cy9",null,null,"2006-07","2007"]
[null,"dms_fy10","2015-16","2016","dms_cy10","dms_frcp_fy10","2024-25",2025,"dms_crcp_cy10",null,null,"2007-08","2008"]
[null,"dms_fy11","2016-17","2017","dms_cy11","dms_frcp_fy11","2025-26",2026,"dms_crcp_cy11",null,null,"2008-09","2009"]
[null,"dms_fy12","2017-18","2018","dms_cy12","dms_frcp_fy12","2026-27",2027,"dms_crcp_cy12",null,null,"2009-10",2010]
[null,"dms_fy13","2018-19",2019,"dms_cy13","dms_frcp_fy13","2027-28",2028,"dms_crcp_cy13",null,null,"2010-11",2011]
[null,"dms_fy14","2019-20","2020","dms_cy14","dms_frcp_fy14","2028-29",2029,"dms_crcp_cy14",null,null,"2011-12",2012]
[null,"dms_fy15","2019-20","2020","dms_cy15","dms_frcp_fy15","2029-30",2030,"dms_crcp_cy15",null,null,"2012-13",2013]
[null,"dms_fy16","2020-21","2021","dms_cy16",null,null,null,null,null,null,"2013-14",2014]
[null,"dms_fy17","2021-22","2022","dms_cy17",null,null,null,null,null,null,"2014-15",2015]
[null,"dms_fy18","2022-23","2023","dms_cy18",null,null,null,null,null,null,"2015-16",2016]
[null,"dms_fy19","2023-24","2024","dms_cy19",null,null,null,null,null,null,"2016-17",2017]
[null,"dms_fy20","2024-25","2025","dms_cy20",null,null,null,null,null,null,"2017-18",2018]
[null,null,null,null,null,null,null,null,null,null,null,"2018-19",2019]
[null,null,null,null,null,null,null,null,null,null,null,"2019-20",2020]
[null,null,null,null,null,null,null,null,null,null,null,"2020-21",2021]
[null,null,null,null,null,null,null,null,null,null,null,"2021-22",2022]
[null,null,null,null,null,null,null,null,null,null,null,"2022-23",2023]
[null,null,null,null,null,null,null,null,null,null,null,"2023-24",2024]
[null,null,null,null,null,null,null,null,null,null,null,"2024-25",2025]
[null,null,null,null,null,null,null,null,null,null,null,"2025-26",2026]
[null,null,null,null,null,null,null,null,null,null,null,"2026-27",2027]
[null,null,null,null,null,null,null,null,null,null,null,"2027-28",2028]
[null,null,null,null,null,null,null,null,null,null,null,"2028-29",2029]
[null,null,null,null,null,null,null,null,null,null,null,"2029-30",2030]
[null,null,null,null,null,null,null,null,null,null,null,"2030-31",2031]
[null,null,null,null,null,null,null,null,null,null,null,"2031-32",2032]
[null,null,null,null,null,null,null,null,null,null,null,"2032-33",2033]
[null,null,null,null,null,null,null,null,null,null,null,"2033-34",2034]
[null,null,null,null,null,null,null,null,null,null,null,"2034-35",2035]
[null,null,null,null,null,null,null,null,null,null,null,"2035-36",2036]

{"sheet":"Instructions","index":1,"n_rows":27,"n_cols":4,"rows_kept":27,"cut":false,"hidden":false,"merged":[[25,2,25,3],[26,2,26,4],[8,2,8,4],[10,2,10,4],[12,2,12,4],[20,2,20,4],[22,2,22,4],[24,2,24,4],[7,2,7,3],[1,1,1,5],[2,1,2,5],[3,2,3,4],[4,2,4,4],[5,2,5,4]]}
[]
[null,{"$f":"CONCATENATE(dms_Segment,\" Network Service Provider\")","v":"Transmission Network Service Provider"}]
[null,"Historical Reporting RIN Template"]
[null,null,{"$f":"CONCATENATE(\"This template is to be used by \",dms_TradingName,\" to fulfil its reporting obligations to the AER.\")","v":"This template is to be used by Powerlink to fulfil its reporting obligations to the AER."}]
[null,null,"INSTRUCTIONS"]
[null,null,"Complete the Business & other details worksheet before entering data or values in any other worksheets. The Business & other details worksheet is linked to other worksheets within the workbook and automatically generates certain column headings and conditional formatting."]
[]
[null,null,"Identifying CONFIDENTIAL INFORMATION:\n\nPlease use the macro at the top of each \nworksheet to identify confidential information. \n\n"]
[null,null,"-Do this by selecting the cell or cells that contain confidential information and then run the Mark selection CONFIDENTIAL macro. This will format the cells a specific colour that is identified by the AER's database which in turn marks that information as confidential.\n\n-To reverse this, select the cell or cells and run the Return selection to NON-CONFIDENTIAL macro."]
[]
[null,null,"UNITS OF MEASURE\n\nAll amounts are to be unrounded and reported on a one for one basis: that is 1000 is to be entered as '1000'. Applicable units of measure may be identified in the table column headings or row descriptors.\n\n\n"]
[]
[null,null,"COLOUR CODING OF INPUT / NON-INPUT CELLS:"]
[null,null,null,"Yellow = Input cell (mandatory)"]
[null,null,null,"Darker yellow = input cell (mandatory)"]
[null,null,null,"Orange = input cell (if data available)"]
[null,null,null,"Grey = Not applicable/No inputs required"]
[null,null,null,". \nPLEASE DO NOT ENTER TEXT into cells that are to contain numeric data."]
[]
[]
[null,null,"WORKSHEET NAVIGATION\n\nMany tables in the worksheets have been \"grouped\" to allow for easy navigation. To ungroup or group data use the outline symbols in the left margin of excel (for Row groupings) or above the columns (for column groupings). \n\n\n\n"]
[]
[null,null,"RETURNING COMPLETED RESPONSES\n\nPlease return four (4) files - using the locked template - to the AER:\n \n1. A confidential version which must contain a complete set of all responses with confidential information marked using the Mark selected cells CONFIDENTIAL macro.\n\n2. An actual and an estimate version with confidential information marked using the Mark selection CONFIDENTIAL macro and which has been completed using the locked template file provided by the AER.\n\n3. A public version with confidential information either removed completely or aggregated in some form together with writtten consent to disclose the public version of the response.\n\nUse the drop down box on the Business and other details worksheet to identify the file as either confidential ('consolidated') or public. If the confidential and public versions of the consolidated file are exactly the same, only the public version of the file needs to be submitted to the AER."]
[]
[null,null,"SUBMITTING AMENDED DATA TO THE AER\n\nIf an NSP wishes to correct data previously submitted to the AER it should resubmit that data using the original completed submission as the starting point. Please make any necessary changes to the data. Data that is not being amended should be left unchanged. \n\nNSPs must identify the reason for the amendments in the Amendment Reason box on the  Business and other details worksheet. NSPs may provide further details regarding any amendments in the Amendments worksheet. \n\n."]
[null,null,"NSP may use Amended Data macro \nto highlight cells that contain amended data.\nNB: if data is also CONFIDENTIAL, re-apply \nthe Confidentiality macro after applying the \nAmended macro"]
[null,null,"Please resubmit two (2) files - a confidential version and a public version of the amended submission to the AER"]

{"sheet":"Contents","index":2,"n_rows":12,"n_cols":2,"rows_kept":12,"cut":false,"hidden":false,"merged":[]}
[null,"REGULATORY REPORTING STATEMENT"]
[null,{"$f":"INDEX(dms_TradingNameFull_List,MATCH(dms_TradingName,dms_TradingName_List))","v":"Queensland Electricity Transmission Corporation Limited trading as Powerlink Queensland"}]
[null,{"$f":"CONCATENATE(\"Benchmarking RIN response \",CRY)","v":"Benchmarking RIN response 2016-17"}]
[]
[null,"CONTENTS"]
[]
[]
[]
[]
[]
[]
[null,"3.             ECONOMIC BENCHMARKING"]

{"sheet":"Business & other details","index":3,"n_rows":88,"n_cols":27,"rows_kept":88,"cut":false,"hidden":false,"merged":[[54,0,87,0],[82,4,82,8],[24,2,24,3],[24,4,24,7],[32,1,32,8],[49,2,49,3],[51,2,51,8],[23,4,23,7],[7,1,7,8],[11,1,11,8],[13,2,13,4],[14,2,14,4],[17,2,17,3],[17,4,17,7],[18,4,18,7],[19,2,19,3],[19,4,19,7],[22,2,22,3],[22,4,22,7]]}
[null,"REGULATORY REPORTING STATEMENT"]
[null,{"$f":"INDEX(dms_TradingNameFull_List,MATCH(dms_TradingName,dms_TradingName_List))","v":"Queensland Electricity Transmission Corporation Limited trading as Powerlink Queensland"}]
[null,{"$f":"CONCATENATE(\"Economic Benchmarking RIN response \", CRY)","v":"Economic Benchmarking RIN response 2016-17"}]
[null,"BUSINESS & OTHER DETAILS"]
[]
[]
[null,"Instructions"]
[null,"Complete the following business details regulatory template before entering data or values in any other regulatory template. This regulatory template is linked to other cells within the spreadsheet and automatically generates column headings."]
[]
[null,"SUBMISSION PARTICULARS INPUT SHEETS"]
[]
[null,"ENTITY DETAILS"]
[]
[null,"Short name","Powerlink"]
[null,"ACN / ABN",{"$f":"INDEX(dms_ABN_List,MATCH(dms_TradingName,dms_TradingName_List))","v":82078849233}]
[]
[]
[null,"Business address","Address 1",null,{"$f":"INDEX(dms_Addr1_List,MATCH(dms_TradingName,dms_TradingName_List))","v":"33 Harold St"}]
[null,null,null,"Address 2",{"$f":"IF(ISBLANK(INDEX(dms_Addr2_List,MATCH(dms_TradingName,dms_TradingName_List))),\"\",INDEX(dms_Addr2_List,MATCH(dms_TradingName,dms_TradingName_List)))","v":""}]
[null,null,"Suburb",null,{"$f":"INDEX(dms_Suburb_List,MATCH(dms_TradingName,dms_TradingName_List))","v":"VIRGINIA"}]
[null,null,null,"State",{"$f":"INDEX(dms_State_List,MATCH(dms_TradingName,dms_TradingName_List))","v":"Qld"},"p/code",{"$f":"INDEX(dms_PostCode_List,MATCH(dms_TradingName,dms_TradingName_List))","v":"4014"}]
[]
[null,"Postal address","Address 1",null,{"$f":"INDEX(dms_PAddr1_List,MATCH(dms_TradingName,dms_TradingName_List))","v":"PO Box 1193"}]
[null,null,null,"Address 2",{"$f":"IF(ISBLANK(INDEX(dms_PAddr2_List,MATCH(dms_TradingName,dms_TradingName_List))),\"\",INDEX(dms_PAddr2_List,MATCH(dms_TradingName,dms_TradingName_List)))","v":""}]
[null,null,"Suburb",null,{"$f":"INDEX(dms_PSuburb_List,MATCH(dms_TradingName,dms_TradingName_List))","v":"VIRGINIA"}]
[null,null,null,"State",{"$f":"INDEX(dms_PState_List,MATCH(dms_TradingName,dms_TradingName_List))","v":"QLD"},"p/code",{"$f":"INDEX(dms_PPostCode_List,MATCH(dms_TradingName,dms_TradingName_List))","v":4014}]
[]
[]
[null,"Contact name/s",{"$f":"INDEX(dms_ContactName1_List,MATCH(dms_TradingName,dms_TradingName_List))","v":"Jennifer Harris"}]
[null,"Contact phone/s",{"$f":"INDEX(dms_ContactPh1_List,MATCH(dms_TradingName,dms_TradingName_List))","v":"07 3860 2667"},null,null,null,null,null,null,null,null,null,null,null,null,null,null,null,null,null,null,null,null,null,null,null,"Tom Hallam"]
[null,"Contact email address/s",{"$f":"INDEX(dms_ContactEmail_List,MATCH(dms_TradingName,dms_TradingName_List))","v":"jharris@powerlink.com.au"},null,null,null,null,null,null,null,null,null,null,null,null,null,null,null,null,null,null,null,null,null,null,null,"Tom Hallam"]
[]
[null,"REGULATORY CONTROL PERIODS"]
[]
[null,"Forthcoming regulatory control period","2016-17",{"$f":"dms_FRCP_y2","v":"2017-18"},{"$f":"dms_FRCP_y3","v":"2018-19"},{"$f":"dms_FRCP_y4","v":"2019-20"},{"$f":"dms_FRCP_y5","v":"2020-21"},{"$f":"dms_FRCP_y6","v":"2021-22"},{"$f":"IF(dms_RPT=\"financial\",VALUE(LEFT(FRCP_y6,4)+1)&\"-\"&VALUE(MID(FRCP_y6,3,2)+2),VALUE(LEFT(FRCP_y6,4)+1))","v":"2022-23"}]
[]
[]
[null,"Current regulatory control period",{"$f":"dms_CRCP_FirstYear_Result","v":"2011-12"},{"$f":"IF(dms_RPT=\"financial\",VALUE(LEFT(CRCP_y1,4)+1)&\"-\"&TEXT(VALUE(RIGHT(CRCP_y1,2)+1),\"0#\"),VALUE(LEFT(CRCP_y1,4)+1))","v":"2012-13"},{"$f":"IF(dms_RPT=\"financial\",VALUE(LEFT(CRCP_y2,4)+1)&\"-\"&TEXT(VALUE(RIGHT(CRCP_y2,2)+1),\"0#\"),VALUE(LEFT(CRCP_y2,4)+1))","v":"2013-14"},{"$f":"IF(dms_RPT=\"financial\",VALUE(LEFT(CRCP_y3,4)+1)&\"-\"&TEXT(VALUE(RIGHT(CRCP_y3,2)+1),\"0#\"),VALUE(LEFT(CRCP_y3,4)+1))","v":"2014-15"},{"$f":"IF(dms_RPT=\"financial\",VALUE(LEFT(CRCP_y4,4)+1)&\"-\"&TEXT(VALUE(RIGHT(CRCP_y4,2)+1),\"0#\"),VALUE(LEFT(CRCP_y4,4)+1))","v":"2015-16"},{"$f":"IF(dms_RPT=\"financial\",VALUE(LEFT(CRCP_y5,4)+1)&\"-\"&TEXT(VALUE(RIGHT(CRCP_y5,2)+1),\"0#\"),VALUE(LEFT(CRCP_y5,4)+1))","v":"2016-17"}]
[]
[]
[null,"Previous regulatory control period",{"$f":"IF(dms_RPT=\"financial\",VALUE(LEFT(PRCP_y2,4)-1)&\"-\"&TEXT(VALUE(MID(PRCP_y2,3,2)),\"0#\"),VALUE(LEFT(PRCP_y2,4)-1))","v":"2006-07"},{"$f":"IF(dms_RPT=\"financial\",VALUE(LEFT(PRCP_y3,4)-1)&\"-\"&TEXT(VALUE(MID(PRCP_y3,3,2)),\"0#\"),VALUE(LEFT(PRCP_y3,4)-1))","v":"2007-08"},{"$f":"IF(dms_RPT=\"financial\",VALUE(LEFT(PRCP_y4,4)-1)&\"-\"&TEXT(VALUE(MID(PRCP_y4,3,2)),\"0#\"),VALUE(LEFT(PRCP_y4,4)-1))","v":"2008-09"},{"$f":"IF(dms_RPT=\"financial\",VALUE(LEFT(PRCP_y5,4)-1)&\"-\"&TEXT(VALUE(RIGHT(PRCP_y5,2)-1),\"0#\"),VALUE(LEFT(PRCP_y5,4)-1))","v":"2009-10"},{"$f":"IF(dms_RPT=\"financial\",VALUE(LEFT(CRCP_y1,4)-1)&\"-\"&TEXT(VALUE(RIGHT(CRCP_y1,2)-1),\"0#\"),VALUE(LEFT(CRCP_y1,4)-1))","v":"2010-11"}]
[]
[]
[null,"Current regulatory year","2016-17","CRY"]
[]
[]
[null,null,"DELETE NR 'CRY' IF NOT AN ANNUAL RIN (EB, CA , ARR)"]
[null,null,"APPLY NR 'CRY' IF AN ANNUAL RIN (EB, CA , ARR)"]
[]
[null,"Source","Reporting",null,"Please select the correct submission type from the dropdown list."]
[null,"Data quality (actual, estimate, public, consolidated)","Consolidated"]
[null,"Amended RIN submission - amendment reason"]
[null,"Submission Date","dd/mm/yyyy","dms_SubmissionDate","Please enter date this file submitted to AER (dd/mm/yyyy)"]
[null,"EBSS - First application of scheme in forthcoming period?","No"]
["HIDE THESE ROWS","Sector",{"$f":"INDEX(dms_Sector_List,MATCH(dms_TradingName,dms_TradingName_List))","v":"Electricity"},"dms_Sector","=INDEX(dms_Sector_List,MATCH(dms_TradingName,dms_TradingName_List))"]
[null,"Segment",{"$f":"INDEX(dms_Segment_List,MATCH(dms_TradingName,dms_TradingName_List))","v":"Transmission"},"dms_Segment","=INDEX(dms_Segment_List,MATCH(dms_TradingName,dms_TradingName_List))"]
[null,"Regulatory Year Ending",{"$f":"IF(dms_MultiYear_Flag=1,LEFT(dms_Specified_FinalYear,2)&RIGHT(dms_Specified_FinalYear,2),INDEX(dms_RYE_Formula_Result,MATCH(dms_Model,dms_Model_List)))","v":"2017"},"dms_RYE","=IF(dms_MultiYear_Flag=1,LEFT(dms_Specified_FinalYear,2)&RIGHT(dms_Specified_FinalYear,2),INDEX(dms_RYE_Formula_Result,MATCH(dms_Model,dms_Model_List)))"]
[null,"Reporting Period Type",{"$f":"INDEX(dms_RPT_List,MATCH(dms_TradingName,dms_TradingName_List))","v":"Financial"},"dms_RPT","=INDEX(dms_RPT_List,MATCH(dms_TradingName,dms_TradingName_List))"]
[null,"Model or RIN Type","EB","dms_Model","Drop down selection"]
[null,"Security Classification","Public","dms_Classification","Always Public"]
[null,"Template - version no.",5,"dms_TemplateNumber"]
[null,"Dollar $ real month",{"$f":"INDEX(dms_RPTMonth_List,MATCH(dms_TradingName,dms_TradingName_List))","v":"June"},"dms_RPTMonth","=INDEX(dms_RPTMonth_List,MATCH(dms_TradingName,dms_TradingName_List))"]
[null,"Dollar $ real  (the last month before the FRCP_y1)",{"$f":"IF(SUM(dms_SingleYear_Model)>0,CONCATENATE(dms_RPTMonth)&\" \"&VALUE((LEFT(CRY,2))&RIGHT(CRY,2)),CONCATENATE(dms_RPTMonth)&\" \"&VALUE((LEFT(dms_CRCP_FinalYear_Result,2))&RIGHT(dms_CRCP_FinalYear_Result,2)))","v":"June 2017"},"dms_DollarReal","=IF(SUM(dms_SingleYear_Model)>0,CONCATENATE(dms_RPTMonth)&\" \"&VALUE((LEFT(CRY,2))&RIGHT(CRY,2)),CONCATENATE(dms_RPTMonth)&\" \"&VALUE((LEFT(dms_CRCP_FinalYear_Result,2))&RIGHT(dms_CRCP_FinalYear_Result,2)))"]
[null,"Form of control",{"$f":"INDEX(dms_FormControl_List,MATCH(dms_TradingName,dms_TradingName_List))","v":"Revenue cap"},"dms_FormControl","=INDEX(dms_FormControl_List,MATCH(dms_TradingName,dms_TradingName_List))"]
[null,"RIN response - version no.",1,"dms_RINversion"]
[null,"Jurisdiction",{"$f":"INDEX(dms_JurisdictionList,MATCH(dms_TradingName,dms_TradingName_List))","v":"Qld"},"dms_Jurisdiction","=INDEX(dms_JurisdictionList,MATCH(dms_TradingName,dms_TradingName_List))"]
[null,"Backcast Multiyear EB, CA or ARR?",0,"dms_MultiYear_Flag","1=y, 0-n"]
[null,null,2013,"dms_Specified_FinalYear","The result here is returned to dms_CRCP_FinalYear_Result if dms_MultiYear_Flag is set to 1"]
[null,"Single Year Model T/F",{"$f":"IF(dms_Model=\"EB\",1,0)","v":1},"dms_EB"]
[null,null,{"$f":"IF(dms_Model=\"CA\",1,0)","v":0},"dms_CA","=dms_SingleYear_Model"]
[null,null,{"$f":"IF(dms_Model=\"ARR\",1,0)","v":0},"dms_ARR"]
[null,"Single Year Final Year Reference","CRY","dms_SingleYear_FinalYear_Ref","This is the reference for EB, CA & ARR RINs"]
[null,"Single Year Final Year Result",{"$f":"INDIRECT(dms_SingleYear_FinalYear_Ref)","v":"2016-17"},"dms_SingleYear_FinalYear_Result","=INDIRECT(dms_SingleYear_FinalYear_Ref)",null,null,null,"Formula errors OK"]
[null,"FRCP length in years",{"$f":"INDEX(dms_FRCPlength_List,MATCH(dms_TradingName,dms_TradingName_List))","v":5},"dms_FRCPlength_Num","=INDEX(dms_FRCPlength_List,MATCH(dms_TradingName,dms_TradingName_List))"]
[null,"Multi Year Final Year Reference",{"$f":"INDEX(dms_FinalYear_List,MATCH(dms_FRCPlength_Num,dms_FRCPlength_Num_List))","v":"dms_FRCP_y5"},"dms_MultiYear_FinalYear_Ref","=INDEX(dms_FinalYear_List,MATCH(dms_FRCPlength_Num,dms_FRCPlength_Num_List))"]
[null,"Multi Year Final Year Result",{"$f":"IF(dms_MultiYear_Flag=0,INDIRECT(dms_MultiYear_FinalYear_Ref),dms_Specified_FinalYear)","v":"2020-21"},"dms_MultiYear_FinalYear_Result","=IF(dms_MultiYear_Flag=0,INDIRECT(dms_MultiYear_FinalYear_Ref),dms_Specified_FinalYear)",null,null,null,"Formula errors OK"]
[null,"CRCP length in years",{"$f":"INDEX(dms_CRCPlength_List,MATCH(dms_TradingName,dms_TradingName_List))","v":5},"dms_CRCPlength_Num","=INDEX(dms_CRCPlength_List,MATCH(dms_TradingName,dms_TradingName_List))"]
[null,"CRCP Final Year Reference",{"$f":"INDEX(dms_CFinalYear_List,MATCH(dms_CRCPlength_Num,dms_CRCPlength_Num_List))","v":"CRCP_y5"},"dms_CRCP_FinalYear_Ref","=INDEX(dms_CFinalYear_List,MATCH(dms_CRCPlength_Num,dms_CRCPlength_Num_List))"]
[null,"CRCP First Year Result",{"$f":"INDEX(dms_CRCP_years,MATCH(dms_CRCPlength_Num,dms_CRCP_index))","v":"2011-12"},"dms_CRCP_FirstYear_Result","=INDEX(dms_CRCP_years,MATCH(dms_CRCPlength_Num,dms_CRCP_index))"]
[null,"CRCP Final Year Result",{"$f":"IF(dms_MultiYear_Flag=0,(IF(SUM(dms_SingleYear_Model)>0,CRY,dms_CRCP_yZ)),dms_Specified_FinalYear)","v":"2016-17"},"dms_CRCP_FinalYear_Result","=IF(dms_MultiYear_Flag=0,(IF(SUM(dms_SingleYear_Model)>0,CRY,dms_CRCP_yZ)),dms_Specified_FinalYear)"]
[null,"Table 6.6.3 - Public lighting repair - no. business days",{"$f":"INDEX(dms_663_List,MATCH(dms_TradingName,dms_TradingName_List))","v":5},"dms_663"]
[null,"Distribution Determination Reference",{"$f":"INDEX(dms_DeterminationRef_List,MATCH(dms_TradingName,dms_TradingName_List))","v":"transmission determination"}]
[null,"Backcast templates only - unit of measure ","$0s","dms_Backcast_UOM","If the cover sheet is for Backcast data ensure to apply dms_Backcast_UOM named range to this field. Otherwise, do not apply this named range."]
[null,"EB/CA Unit of Measure for Monetary Values","$0s","dms_dollar_nom_UOM","If the cover sheet is attached to an EB files make sure this field is set"]
[]
[null,"discard this record?","NO","dms_DISCARD","If record is to be discarded from DB set this flag to YES"]
[]
[null,"USES NAMED RANGES FLAG","yes","dms_Defined_Names_Used"]

{"sheet":"3.1 Revenue","index":4,"n_rows":40,"n_cols":6,"rows_kept":40,"cut":false,"hidden":false,"merged":[]}
[null,{"$f":"(LOOKUP(dms_Model,dms_Model_List,dms_Worksheet_List))","v":"ECONOMIC BENCHMARKING"}]
[null,{"$f":"INDEX(dms_TradingNameFull_List,MATCH(dms_TradingName,dms_TradingName_List))","v":"Queensland Electricity Transmission Corporation Limited trading as Powerlink Queensland"}]
[null,{"$f":"CONCATENATE(\"Benchmarking RIN response \", CRY)","v":"Benchmarking RIN response 2016-17"}]
[null,"3.1 REVENUE"]
[]
[]
[null,"3.1.1 REVENUE GROUPING BY CHARGEABLE QUANTITY"]
[null,null,"REVENUE\n($0's)"]
[null,null,{"$f":"CRY","v":"2016-17"}]
["TREV0101","From Fixed Customer (Exit Point) Charges",130894536.51491538]
["TREV0102","From Variable Customer (Exit Point) Charges",0]
["TREV0103","From Fixed Generator (Entry Point) Charges",8223420.9910871796]
["TREV0104","From Variable Generator (Entry Point) Charges",0]
["TREV0105","From Fixed Energy Usage Charges (Charge per day basis)",218494095.27272728]
["TREV0106","From Variable Energy Usage charges (Charge per kWh basis)",105996936.98057786]
["TREV0107","From Energy based Common Service and General Charges",491825521.09090912]
["TREV0108","From Fixed Demand based Usage Charges",86756410.181818172]
["TREV0109","From Variable Demand based Usage Charges",11842158.852560403]
["TREV0110","Revenue from other Sources",-13059200.063785363]
["TREV01","Total revenue by chargeable quantity",{"$f":"SUM(C10:C19)","v":1040973879.82081}]
[]
[]
[null,"3.1.2 REVENUE GROUPING BY TYPE OF CONNECTED EQUIPMENT"]
[null,null,"REVENUE\n($0's)"]
[null,null,{"$f":"CRY","v":"2016-17"}]
["TREV0201","From Other connected transmission networks",11203605.41454545]
["TREV0202","From Distribution networks",856326729.30963516]
["TREV0203","From Directly connected end–users",178279324.16932762]
["TREV0204","From Generators",8223420.9910871796]
["TREV0205","Other revenue",-13059200.063785363]
["TREV02","Total revenue by type of connected equipment",{"$f":"SUM(C26:C30)","v":1040973879.8208101}]
[]
[null,null,null,null,null,"`"]
[null,"3.1.3 REVENUE (penalties) ALLOWED (deducted) THROUGH INCENTIVE SCHEMES"]
[null,null,"REVENUE\n($0's)"]
[null,null,{"$f":"CRY","v":"2016-17"}]
["TREV0301","EBSS",0]
["TREV0302","STPIS",20955607]
["TREV0303","Other",0]
["TREV03","Total revenue of incentive schemes",{"$f":"SUM(C37:C39)","v":20955607}]

{"sheet":"3.2 Operating expenditure","index":5,"n_rows":56,"n_cols":3,"rows_kept":56,"cut":false,"hidden":false,"merged":[]}
[null,"REGULATORY REPORTING STATEMENT"]
[null,{"$f":"INDEX(dms_TradingNameFull_List,MATCH(dms_TradingName,dms_TradingName_List))","v":"Queensland Electricity Transmission Corporation Limited trading as Powerlink Queensland"}]
[null,{"$f":"CONCATENATE(\"Benchmarking RIN response \",CRY)","v":"Benchmarking RIN response 2016-17"}]
[null,"3.2 OPERATING EXPENDITURE"]
[]
[]
[null,"Instructions"]
[null,{"$f":"CONCATENATE(\"In table 3.2.1, please list each opex category reported in response to \",dms_TradingName, \"'s annual reporting RIN and report opex for each category.\")","v":"In table 3.2.1, please list each opex category reported in response to Powerlink's annual reporting RIN and report opex for each category."}]
[]
[]
[null,"3.2.1 - OPEX CATEGORIES"]
[null,"CURRENT OPEX CATEGORIES AND COST ALLOCATIONS"]
[null,null,"EXPENDITURE\n($0's)"]
[null,null,{"$f":"CRY","v":"2016-17"}]
["TOPEX0101","Field Maintenance - Routine",13770000]
["TOPEX0102","Field Maintenance - Condition-based",44767000]
["TOPEX0103","Field Maintenance - Corrective",18264000]
["TOPEX0104","Maintenance Support",12704000]
["TOPEX0105","Refurbishment",33335000]
["TOPEX0106","Insurance Premiums",6327000]
["TOPEX0107","Self Insurance",1722000]
["TOPEX0108","Network Operations",14269000]
["TOPEX0109","Asset Management Support",34705000]
["TOPEX0110","Corporate Support",31062000]
["TOPEX0111","AEMC Levy",4204710]
["TOPEX0112","Project - write-off",3971859]
["TOPEX0113","Revenue Reset",747514]
["TOPEX0114","Debt Management Costs",583000]
["TOPEX0115","Grid Support",1770000]
["TOPEX0116","Net Loss on Disposal of Property, Plant & Equip",4059066]
["TOPEX0117"]
["TOPEX0118"]
["TOPEX0119"]
["TOPEX0120"]
["TOPEX0121"]
["TOPEX0122"]
["TOPEX0123"]
["TOPEX0124"]
["TOPEX0125"]
["TOPEX0126"]
["TOPEX0127"]
["TOPEX0128"]
["TOPEX0129"]
["TOPEX0130"]
["TOPEX0131"]
["TOPEX0132"]
["TOPEX0133"]
["TOPEX0134"]
["TOPEX0135"]
["TOPEX0136"]
["TOPEX0137"]
["TOPEX0138"]
["TOPEX0139"]
["TOPEX0140"]
["TOPEX0141"]
["TOPEX01","Total opex ",{"$f":"SUM(C15:C55)","v":226261149}]

{"sheet":"3.2.3 Provisions","index":6,"n_rows":370,"n_cols":4,"rows_kept":370,"cut":false,"hidden":false,"merged":[]}
[null,"REGULATORY REPORTING STATEMENT"]
[null,{"$f":"INDEX(dms_TradingNameFull_List,MATCH(dms_TradingName,dms_TradingName_List))","v":"Queensland Electricity Transmission Corporation Limited trading as Powerlink Queensland"}]
[null,{"$f":"CONCATENATE(\"Benchmarking RIN response \",CRY)","v":"Benchmarking RIN response 2016-17"}]
[null,"3.2 OPERATING EXPENDITURE"]
[]
[null,"The is ONE table on this worksheet. Each Provision has been grouped for ease of navigation. See the Instructions sheet on how to group and ungroup tables."]
[]
[null,"3.2.3 - PROVISIONS"]
[null,null,null,"$0's"]
[null,null,null,{"$f":"CRY","v":"2016-17"}]
["TOPEX03A","Employee Entitlements"]
[null,"Employee Annual and Long Service leave Liability "]
["TOPEX0301A","Opening balance (the carrying amount at the beginning of the period)",null,34611714.128017373]
[null,"Additional provisions made in the period, including increases to existing provisions"]
["TOPEX0302A","Opex component",null,8318759.1964643365]
["TOPEX0303A","Capex component",null,5801394.1059618527]
["TOPEX0304A","Other component",null,0]
[null,"Amounts used (that is, incurred and charged against the provision) during the period"]
["TOPEX0305A","Opex component",null,-9353325.1981091518]
["TOPEX0306A","Capex component",null,-6522886.9346906515]
["TOPEX0307A","Other component",null,0]
[null,"Unused amounts reversed during the period"]
["TOPEX0308A","Opex component",null,0]
["TOPEX0309A","Capex component",null,0]
["TOPEX0310A","Other component",null,0]
[null,"The increase during the period in the discounted amount arising from the passage of time and the effect of any change in the discount rate"]
["TOPEX0311A","Opex component",null,-245081.73337466738]
["TOPEX0312A","Capex component",null,-170916.80260236576]
["TOPEX0313A","Other component",null,0]
["TOPEX0314A","Closing balance (carrying amount at the end of the period)",null,32439656.761666726]
["TOPEX03B","Other Provisions"]
[null,"Other Provisions"]
["TOPEX0301B","Opening balance (the carrying amount at the beginning of the period)",null,2955664.69]
[null,"Additional provisions made in the period, including increases to existing provisions"]
["TOPEX0302B","Opex component",null,4252668]
["TOPEX0303B","Capex component",null,0]
["TOPEX0304B","Other component",null,0]
[null,"Amounts used (that is, incurred and charged against the provision) during the period"]
["TOPEX0305B","Opex component",null,-2567198.83]
["TOPEX0306B","Capex component",null,0]
["TOPEX0307B","Other component",null,0]
[null,"Unused amounts reversed during the period"]
["TOPEX0308B","Opex component",null,0]
["TOPEX0309B","Capex component",null,0]
["TOPEX0310B","Other component",null,0]
[null,"The increase during the period in the discounted amount arising from the passage of time and the effect of any change in the discount rate"]
["TOPEX0311B","Opex component",null,0]
["TOPEX0312B","Capex component",null,0]
["TOPEX0313B","Other component",null,0]
["TOPEX0314B","Closing balance (carrying amount at the end of the period)",null,4641133.8599999994]
["TOPEX03C","Dividends"]
[null,"Provision for Dividends declared by the Board of Directors"]
["TOPEX0301C","Opening balance (the carrying amount at the beginning of the period)",null,190702323.24597543]
[null,"Additional provisions made in the period, including increases to existing provisions"]
["TOPEX0302C","Opex component",null,315507078.68738413]
["TOPEX0303C","Capex component",null,0]
["TOPEX0304C","Other component",null,0]
[null,"Amounts used (that is, incurred and charged against the provision) during the period"]
["TOPEX0305C","Opex component",null,-330474983.43542141]
["TOPEX0306C","Capex component",null,0]
["TOPEX0307C","Other component",null,0]
[null,"Unused amounts reversed during the period"]
["TOPEX0308C","Opex component",null,0]
["TOPEX0309C","Capex component",null,0]
["TOPEX0310C","Other component",null,0]
[null,"The increase during the period in the discounted amount arising from the passage of time and the effect of any change in the discount rate"]
["TOPEX0311C","Opex component",null,0]
["TOPEX0312C","Capex component",null,0]
["TOPEX0313C","Other component",null,0]
["TOPEX0314C","Closing balance (carrying amount at the end of the period)",null,175734418.49793813]
["TOPEX03D","Provision name"]
[null,"Brief description of provision"]
["TOPEX0301D","Opening balance (the carrying amount at the beginning of the period)"]
[null,"Additional provisions made in the period, including increases to existing provisions"]
["TOPEX0302D","Opex component"]
["TOPEX0303D","Capex component"]
["TOPEX0304D","Other component"]
[null,"Amounts used (that is, incurred and charged against the provision) during the period"]
["TOPEX0305D","Opex component"]
["TOPEX0306D","Capex component"]
["TOPEX0307D","Other component"]
[null,"Unused amounts reversed during the period"]
["TOPEX0308D","Opex component"]
["TOPEX0309D","Capex component"]
["TOPEX0310D","Other component"]
[null,"The increase during the period in the discounted amount arising from the passage of time and the effect of any change in the discount rate"]
["TOPEX0311D","Opex component"]
["TOPEX0312D","Capex component"]
["TOPEX0313D","Other component"]
["TOPEX0314D","Closing balance (carrying amount at the end of the period)"]
["TOPEX03E","Provision name"]
[null,"Brief description of provision"]
["TOPEX0301E","Opening balance (the carrying amount at the beginning of the period)"]
[null,"Additional provisions made in the period, including increases to existing provisions"]
["TOPEX0302E","Opex component"]
["TOPEX0303E","Capex component"]
["TOPEX0304E","Other component"]
[null,"Amounts used (that is, incurred and charged against the provision) during the period"]
["TOPEX0305E","Opex component"]
["TOPEX0306E","Capex component"]
["TOPEX0307E","Other component"]
[null,"Unused amounts reversed during the period"]
["TOPEX0308E","Opex component"]
["TOPEX0309E","Capex component"]
["TOPEX0310E","Other component"]
[null,"The increase during the period in the discounted amount arising from the passage of time and the effect of any change in the discount rate"]
["TOPEX0311E","Opex component"]
["TOPEX0312E","Capex component"]
["TOPEX0313E","Other component"]
["TOPEX0314E","Closing balance (carrying amount at the end of the period)"]
["TOPEX03F","Provision name"]
[null,"Brief description of provision"]
["TOPEX0301F","Opening balance (the carrying amount at the beginning of the period)"]
[null,"Additional provisions made in the period, including increases to existing provisions"]
["TOPEX0302F","Opex component"]
["TOPEX0303F","Capex component"]
["TOPEX0304F","Other component"]
[null,"Amounts used (that is, incurred and charged against the provision) during the period"]
["TOPEX0305F","Opex component"]
["TOPEX0306F","Capex component"]
["TOPEX0307F","Other component"]
[null,"Unused amounts reversed during the period"]
["TOPEX0308F","Opex component"]
["TOPEX0309F","Capex component"]
["TOPEX0310F","Other component"]
[null,"The increase during the period in the discounted amount arising from the passage of time and the effect of any change in the discount rate"]
["TOPEX0311F","Opex component"]
["TOPEX0312F","Capex component"]
["TOPEX0313F","Other component"]
["TOPEX0314F","Closing balance (carrying amount at the end of the period)"]
["TOPEX03G","Provision name"]
[null,"Brief description of provision"]
["TOPEX0301G","Opening balance (the carrying amount at the beginning of the period)"]
[null,"Additional provisions made in the period, including increases to existing provisions"]
["TOPEX0302G","Opex component"]
["TOPEX0303G","Capex component"]
["TOPEX0304G","Other component"]
[null,"Amounts used (that is, incurred and charged against the provision) during the period"]
["TOPEX0305G","Opex component"]
["TOPEX0306G","Capex component"]
["TOPEX0307G","Other component"]
[null,"Unused amounts reversed during the period"]
["TOPEX0308G","Opex component"]
["TOPEX0309G","Capex component"]
["TOPEX0310G","Other component"]
[null,"The increase during the period in the discounted amount arising from the passage of time and the effect of any change in the discount rate"]
["TOPEX0311G","Opex component"]
["TOPEX0312G","Capex component"]
["TOPEX0313G","Other component"]
["TOPEX0314G","Closing balance (carrying amount at the end of the period)"]
["TOPEX03H","Provision name"]
[null,"Brief description of provision"]
["TOPEX0301H","Opening balance (the carrying amount at the beginning of the period)"]
[null,"Additional provisions made in the period, including increases to existing provisions"]
["TOPEX0302H","Opex component"]
["TOPEX0303H","Capex component"]
["TOPEX0304H","Other component"]
[null,"Amounts used (that is, incurred and charged against the provision) during the period"]
["TOPEX0305H","Opex component"]
["TOPEX0306H","Capex component"]
["TOPEX0307H","Other component"]
[null,"Unused amounts reversed during the period"]
["TOPEX0308H","Opex component"]
["TOPEX0309H","Capex component"]
["TOPEX0310H","Other component"]
[null,"The increase during the period in the discounted amount arising from the passage of time and the effect of any change in the discount rate"]
["TOPEX0311H","Opex component"]
["TOPEX0312H","Capex component"]
["TOPEX0313H","Other component"]
["TOPEX0314H","Closing balance (carrying amount at the end of the period)"]
["TOPEX03I","Provision name"]
[null,"Brief description of provision"]
["TOPEX0301I","Opening balance (the carrying amount at the beginning of the period)"]
[null,"Additional provisions made in the period, including increases to existing provisions"]
["TOPEX0302I","Opex component"]
["TOPEX0303I","Capex component"]
["TOPEX0304I","Other component"]
[null,"Amounts used (that is, incurred and charged against the provision) during the period"]
["TOPEX0305I","Opex component"]
["TOPEX0306I","Capex component"]
["TOPEX0307I","Other component"]
[null,"Unused amounts reversed during the period"]
["TOPEX0308I","Opex component"]
["TOPEX0309I","Capex component"]
["TOPEX0310I","Other component"]
[null,"The increase during the period in the discounted amount arising from the passage of time and the effect of any change in the discount rate"]
["TOPEX0311I","Opex component"]
["TOPEX0312I","Capex component"]
["TOPEX0313I","Other component"]
["TOPEX0314I","Closing balance (carrying amount at the end of the period)"]
["TOPEX03J","Provision name"]
[null,"Brief description of provision"]
["TOPEX0301J","Opening balance (the carrying amount at the beginning of the period)"]
[null,"Additional provisions made in the period, including increases to existing provisions"]
["TOPEX0302J","Opex component"]
["TOPEX0303J","Capex component"]
["TOPEX0304J","Other component"]
[null,"Amounts used (that is, incurred and charged against the provision) during the period"]
["TOPEX0305J","Opex component"]
["TOPEX0306J","Capex component"]
["TOPEX0307J","Other component"]
[null,"Unused amounts reversed during the period"]
["TOPEX0308J","Opex component"]
["TOPEX0309J","Capex component"]
["TOPEX0310J","Other component"]
[null,"The increase during the period in the discounted amount arising from the passage of time and the effect of any change in the discount rate"]
["TOPEX0311J","Opex component"]
["TOPEX0312J","Capex component"]
["TOPEX0313J","Other component"]
["TOPEX0314J","Closing balance (carrying amount at the end of the period)"]
["TOPEX03K","Provision name"]
[null,"Brief description of provision"]
["TOPEX0301K","Opening balance (the carrying amount at the beginning of the period)"]
[null,"Additional provisions made in the period, including increases to existing provisions"]
["TOPEX0302K","Opex component"]
["TOPEX0303K","Capex component"]
["TOPEX0304K","Other component"]
[null,"Amounts used (that is, incurred and charged against the provision) during the period"]
["TOPEX0305K","Opex component"]
["TOPEX0306K","Capex component"]
["TOPEX0307K","Other component"]
[null,"Unused amounts reversed during the period"]
["TOPEX0308K","Opex component"]
["TOPEX0309K","Capex component"]
["TOPEX0310K","Other component"]
[null,"The increase during the period in the discounted amount arising from the passage of time and the effect of any change in the discount rate"]
["TOPEX0311K","Opex component"]
["TOPEX0312K","Capex component"]
["TOPEX0313K","Other component"]
["TOPEX0314K","Closing balance (carrying amount at the end of the period)"]
["TOPEX03L","Provision name"]
[null,"Brief description of provision"]
["TOPEX0301L","Opening balance (the carrying amount at the beginning of the period)"]
[null,"Additional provisions made in the period, including increases to existing provisions"]
["TOPEX0302L","Opex component"]
["TOPEX0303L","Capex component"]
["TOPEX0304L","Other component"]
[null,"Amounts used (that is, incurred and charged against the provision) during the period"]
["TOPEX0305L","Opex component"]
["TOPEX0306L","Capex component"]
["TOPEX0307L","Other component"]
[null,"Unused amounts reversed during the period"]
["TOPEX0308L","Opex component"]
["TOPEX0309L","Capex component"]
["TOPEX0310L","Other component"]
[null,"The increase during the period in the discounted amount arising from the passage of time and the effect of any change in the discount rate"]
["TOPEX0311L","Opex component"]
["TOPEX0312L","Capex component"]
["TOPEX0313L","Other component"]
["TOPEX0314L","Closing balance (carrying amount at the end of the period)"]
["TOPEX03M","Provision name"]
[null,"Brief description of provision"]
["TOPEX0301M","Opening balance (the carrying amount at the beginning of the period)"]
[null,"Additional provisions made in the period, including increases to existing provisions"]
["TOPEX0302M","Opex component"]
["TOPEX0303M","Capex component"]
["TOPEX0304M","Other component"]
[null,"Amounts used (that is, incurred and charged against the provision) during the period"]
["TOPEX0305M","Opex component"]
["TOPEX0306M","Capex component"]
["TOPEX0307M","Other component"]
[null,"Unused amounts reversed during the period"]
["TOPEX0308M","Opex component"]
["TOPEX0309M","Capex component"]
["TOPEX0310M","Other component"]
[null,"The increase during the period in the discounted amount arising from the passage of time and the effect of any change in the discount rate"]
["TOPEX0311M","Opex component"]
["TOPEX0312M","Capex component"]
["TOPEX0313M","Other component"]
["TOPEX0314M","Closing balance (carrying amount at the end of the period)"]
["TOPEX03N","Provision name"]
[null,"Brief description of provision"]
["TOPEX0301N","Opening balance (the carrying amount at the beginning of the period)"]
[null,"Additional provisions made in the period, including increases to existing provisions"]
["TOPEX0302N","Opex component"]
["TOPEX0303N","Capex component"]
["TOPEX0304N","Other component"]
[null,"Amounts used (that is, incurred and charged against the provision) during the period"]
["TOPEX0305N","Opex component"]
["TOPEX0306N","Capex component"]
["TOPEX0307N","Other component"]
[null,"Unused amounts reversed during the period"]
["TOPEX0308N","Opex component"]
["TOPEX0309N","Capex component"]
["TOPEX0310N","Other component"]
[null,"The increase during the period in the discounted amount arising from the passage of time and the effect of any change in the discount rate"]
["TOPEX0311N","Opex component"]
["TOPEX0312N","Capex component"]
["TOPEX0313N","Other component"]
["TOPEX0314N","Closing balance (carrying amount at the end of the period)"]
["TOPEX03O","Provision name"]
[null,"Brief description of provision"]
["TOPEX0301O","Opening balance (the carrying amount at the beginning of the period)"]
[null,"Additional provisions made in the period, including increases to existing provisions"]
["TOPEX0302O","Opex component"]
["TOPEX0303O","Capex component"]
["TOPEX0304O","Other component"]
[null,"Amounts used (that is, incurred and charged against the provision) during the period"]
["TOPEX0305O","Opex component"]
["TOPEX0306O","Capex component"]
["TOPEX0307O","Other component"]
[null,"Unused amounts reversed during the period"]
["TOPEX0308O","Opex component"]
["TOPEX0309O","Capex component"]
["TOPEX0310O","Other component"]
[null,"The increase during the period in the discounted amount arising from the passage of time and the effect of any change in the discount rate"]
["TOPEX0311O","Opex component"]
["TOPEX0312O","Capex component"]
["TOPEX0313O","Other component"]
["TOPEX0314O","Closing balance (carrying amount at the end of the period)"]
["TOPEX03P","Provision name"]
[null,"Brief description of provision"]
["TOPEX0301P","Opening balance (the carrying amount at the beginning of the period)"]
[null,"Additional provisions made in the period, including increases to existing provisions"]
["TOPEX0302P","Opex component"]
["TOPEX0303P","Capex component"]
["TOPEX0304P","Other component"]
[null,"Amounts used (that is, incurred and charged against the provision) during the period"]
["TOPEX0305P","Opex component"]
["TOPEX0306P","Capex component"]
["TOPEX0307P","Other component"]
[null,"Unused amounts reversed during the period"]
["TOPEX0308P","Opex component"]
["TOPEX0309P","Capex component"]
["TOPEX0310P","Other component"]
[null,"The increase during the period in the discounted amount arising from the passage of time and the effect of any change in the discount rate"]
["TOPEX0311P","Opex component"]
["TOPEX0312P","Capex component"]
["TOPEX0313P","Other component"]
["TOPEX0314P","Closing balance (carrying amount at the end of the period)"]
["TOPEX03Q","Provision name"]
[null,"Brief description of provision"]
["TOPEX0301Q","Opening balance (the carrying amount at the beginning of the period)"]
[null,"Additional provisions made in the period, including increases to existing provisions"]
["TOPEX0302Q","Opex component"]
["TOPEX0303Q","Capex component"]
["TOPEX0304Q","Other component"]
[null,"Amounts used (that is, incurred and charged against the provision) during the period"]
["TOPEX0305Q","Opex component"]
["TOPEX0306Q","Capex component"]
["TOPEX0307Q","Other component"]
[null,"Unused amounts reversed during the period"]
["TOPEX0308Q","Opex component"]
["TOPEX0309Q","Capex component"]
["TOPEX0310Q","Other component"]
[null,"The increase during the period in the discounted amount arising from the passage of time and the effect of any change in the discount rate"]
["TOPEX0311Q","Opex component"]
["TOPEX0312Q","Capex component"]
["TOPEX0313Q","Other component"]
["TOPEX0314Q","Closing balance (carrying amount at the end of the period)"]
["TOPEX03R","Provision name"]
[null,"Brief description of provision"]
["TOPEX0301R","Opening balance (the carrying amount at the beginning of the period)"]
[null,"Additional provisions made in the period, including increases to existing provisions"]
["TOPEX0302R","Opex component"]
["TOPEX0303R","Capex component"]
["TOPEX0304R","Other component"]
[null,"Amounts used (that is, incurred and charged against the provision) during the period"]
["TOPEX0305R","Opex component"]
["TOPEX0306R","Capex component"]
["TOPEX0307R","Other component"]
[null,"Unused amounts reversed during the period"]
["TOPEX0308R","Opex component"]
["TOPEX0309R","Capex component"]
["TOPEX0310R","Other component"]
[null,"The increase during the period in the discounted amount arising from the passage of time and the effect of any change in the discount rate"]
["TOPEX0311R","Opex component"]
["TOPEX0312R","Capex component"]
["TOPEX0313R","Other component"]
["TOPEX0314R","Closing balance (carrying amount at the end of the period)"]

{"sheet":"3.3 Assets (RAB)","index":7,"n_rows":90,"n_cols":3,"rows_kept":90,"cut":false,"hidden":false,"merged":[]}
[null,"REGULATORY REPORTING STATEMENT"]
[null,{"$f":"INDEX(dms_TradingNameFull_List,MATCH(dms_TradingName,dms_TradingName_List))","v":"Queensland Electricity Transmission Corporation Limited trading as Powerlink Queensland"}]
[null,{"$f":"CONCATENATE(\"Benchmarking RIN response \",CRY)","v":"Benchmarking RIN response 2016-17"}]
[null,"3.3 ASSETS"]
[]
[null,"There are FOUR tables on this worksheet. Each table has been grouped (and sub-grouped) for ease of navigation. See the Instructions sheet on how to group or ungroup tables. "]
[]
[null,"3.3.1 - REGULATORY ASSET BASE VALUES"]
[null,null,"($0's)"]
[null,null,{"$f":"CRY","v":"2016-17"}]
[null,"For total asset base:"]
["TRAB0101","Opening value",6628181739.7518282]
["TRAB0102","Inflation addition",140894805.92818075]
["TRAB0103","Straight line depreciation",-273813570.27352899]
["TRAB0105","Actual additions (recognised in RAB)",165717786.7894887]
["TRAB0106","Disposals ",-1040688.3404276884]
["TRAB0107","Closing value ",{"$f":"SUM(C12+C13+C14+C15+C16)","v":6659940073.8555412}]
[]
[null,"3.3.2 - ASSET VALUE ROLL FORWARD"]
[null,null,"($0's)"]
[null,null,{"$f":"CRY","v":"2016-17"}]
[null,"For overhead transmission assets:"]
["TRAB0201","Opening value",3333172160.2818089]
["TRAB0202","Inflation addition",70853012.649243414]
["TRAB0203","Straight line depreciation",-113878088.31118977]
["TRAB0205","Actual additions (recognised in RAB)",17345525.680174328]
["TRAB0206","Disposals ",0]
["TRAB0207","Closing value ",{"$f":"SUM(C23+C24+C25+C26+C27)","v":3307492610.3000369}]
[null,"For underground transmission assets:"]
["TRAB0301","Opening value",45651180.285515986]
["TRAB0302","Inflation addition",970404.01715976396]
["TRAB0303","Straight line depreciation",-2223379.1575362771]
["TRAB0305","Actual additions (recognised in RAB)",0]
["TRAB0306","Disposals ",0]
["TRAB0307","Closing value ",{"$f":"SUM(C30+C31+C32+C33+C34)","v":44398205.145139478}]
[null,"For transmission switchyards, substations"]
["TRAB0401","Opening value",2495527842.0378017]
["TRAB0402","Inflation addition",52938503.112087354]
["TRAB0403","Straight line depreciation",-122672587.84858502]
["TRAB0405","Actual additions (recognised in RAB)",104089411.38205934]
["TRAB0406","Disposals ",-415908.58382277464]
["TRAB0407","Closing value ",{"$f":"SUM(C37+C38+C39+C40+C41)","v":2529467260.0995402}]
[null,"For easements:"]
["TRAB0501","Opening value",450457696.12724775]
["TRAB0502","Inflation addition",9738053.1786519382]
["TRAB0503","Straight line depreciation",0]
["TRAB0505","Actual additions (recognised in RAB)",10979314.948833691]
["TRAB0506","Disposals ",0]
["TRAB0507","Closing value ",{"$f":"SUM(C44+C45+C46+C47+C48)","v":471175064.25473338}]
[null,"For “other” assets with long lives:"]
["TRAB0601","Opening value",251355023.34477726]
["TRAB0602","Inflation addition",5289093.3531847354]
["TRAB0603","Straight line depreciation",-14895436.928418556]
["TRAB0605","Actual additions (recognised in RAB)",12293166.882983275]
["TRAB0606","Disposals ",0]
["TRAB0607","Closing value ",{"$f":"SUM(C51+C52+C53+C54+C55)","v":254041846.65252671}]
[null,"For “other” assets with short lives:"]
["TRAB0701","Opening value",52017837.674675398]
["TRAB0702","Inflation addition",1105739.6178535407]
["TRAB0703","Straight line depreciation",-20144078.027799346]
["TRAB0705","Actual additions (recognised in RAB)",21010367.895438112]
["TRAB0706","Disposals ",-624779.75660491385]
["TRAB0707","Closing value ",{"$f":"SUM(C58+C59+C60+C61+C62)","v":53365087.403562784}]
[]
[]
[null,"3.3.3 - TOTAL DISAGGREGATED RAB ASSET VALUES"]
[null,null,"($0's)"]
[null,null,{"$f":"CRY","v":"2016-17"}]
["TRAB0801","Overhead transmission assets (wires and towers/poles etc)",3320332385.2909226]
["TRAB0802","Underground transmission assets (cables, ducts etc)",45024692.715327725]
["TRAB0803","Substations, switchyards, Transformers etc with transmission function",2512497551.0686712]
["TRAB0804","Easements",460816380.19099057]
["TRAB0805","\"Other\" assets with long lives",252698434.99865198]
["TRAB0806","\"Other\" assets with short lives",52691462.539119095]
[]
[null,"3.3.4 - ASSET LIVES"]
[null,null,"Service Life \n(Years)"]
[null,null,{"$f":"CRY","v":"2016-17"}]
[null,"Asset Lives – estimated service life of new assets"]
["TRAB0901","Overhead transmission assets ",49.618811763400153]
["TRAB0902","Underground transmission assets",45]
["TRAB0903","Switchyard, substation and transformer assets",34.665711611898693]
["TRAB0904","“Other” assets with long lives",26.61142405173721]
["TRAB0905","“Other assets with short lives",5.6136653149066387]
[null,"Asset Lives – estimated residual service life"]
["TRAB1001","Overhead transmission assets ",21.53865288939916]
["TRAB1002","Underground transmission assets",24.327331486611264]
["TRAB1003","Switchyard, substation and transformer assets",20.852685050798257]
["TRAB1004","“Other” assets with long lives",20.379148572832023]
["TRAB1005","“Other assets with short lives",2.9568970255894285]

{"sheet":"3.4 Operational data","index":8,"n_rows":93,"n_cols":4,"rows_kept":93,"cut":false,"hidden":false,"merged":[]}
[null,"REGULATORY REPORTING STATEMENT"]
[null,{"$f":"INDEX(dms_TradingNameFull_List,MATCH(dms_TradingName,dms_TradingName_List))","v":"Queensland Electricity Transmission Corporation Limited trading as Powerlink Queensland"}]
[null,{"$f":"CONCATENATE(\"Benchmarking RIN response \",CRY)","v":"Benchmarking RIN response 2016-17"}]
[null,"3.4 OPERATIONAL DATA"]
[]
[null,"There are THREE tables on this worksheet. Each table has been grouped for ease of navigation. See the Instructions sheet on how to group or ungroup tables. "]
[]
[null,"3.4.1 - ENERGY DELIVERY"]
[null,null,null,"VOLUMES (0's)"]
[null,null,"Units",{"$f":"CRY","v":"2016-17"}]
[null,"Energy Grouping by Downstream Connection type"]
["TOPED0101","To Other connected transmission networks","GWh",4129.5982818900002]
["TOPED0102","To Distribution networks","GWh",33306.218325046997]
["TOPED0103","To Directly connected end–users (330 kV)","GWh",0]
["TOPED0104","To Directly connected end–users (275 kV)","GWh",8142.43247969]
["TOPED0105","To Directly connected end–users (220 kV)","GWh",0]
["TOPED0106","To Directly connected end–users (132 kV)","GWh",8425.9665528969999]
["TOPED0107","To Directly connected end–users (110 kV)","GWh",0]
["TOPED0108","To Directly connected end–users (44 kV) ","GWh",0]
["TOPED0109","To Directly connected end–users (33 kV)","GWh",0]
["TOPED0110","To Directly connected end–users (22 kV)","GWh",0]
["TOPED0111","To Directly connected end–users (11 kV)","GWh",0]
["TOPED0112","To Directly connected end–users (6.6 kV)","GWh",0]
["TOPED0113","Pumping and Power Station Auxillaries","GWh",249.08438150200001]
["TOPED01","Total energy transported",null,{"$f":"SUM(D12:D24)","v":54253.300021025992}]
[]
[]
[null,"3.4.2 -  CONNECTION POINTS"]
[null,null,null,"VOLUMES (0's)"]
[null,null,null,{"$f":"CRY","v":"2016-17"}]
[null,"Number of entry points at each transmission voltage level"]
["TOPCP0101","500kV",null,0]
["TOPCP0102","330kV",null,1]
["TOPCP0103","275kV",null,12]
["TOPCP0104","220kV",null,0]
["TOPCP0105","132 kV",null,9]
["TOPCP0106","110kV",null,1]
["TOPCP0107","66 kV",null,0]
["TOPCP0108","33 kV",null,0]
["TOPCP0109","22 kV",null,0]
["TOPCP0110","11 kV",null,0]
["TOPCP0111","6.6 kV",null,0]
[]
[null,"Number of exit points at each transmission voltage level "]
["TOPCP0201","500kV",null,0]
["TOPCP0202","330kV",null,1]
["TOPCP0203","275kV",null,5]
["TOPCP0204","220kV",null,0]
["TOPCP0205","132 kV",null,51.5]
["TOPCP0206","110kV",null,17]
["TOPCP0207","66 kV",null,23]
["TOPCP0208","44 kV",null,0]
["TOPCP0209","33kV",null,14]
["TOPCP0210","22kV",null,7]
["TOPCP0211","11kV",null,4]
["TOPCP0212","6.6kV",null,0]
[]
[]
[]
[null,"3.4.3 - SYSTEM DEMAND"]
[null,null,null,"VOLUMES (0's)"]
[null,null,"Units",{"$f":"CRY","v":"2016-17"}]
[null,"3.4.3.1 - Annual system maximum demand characteristics – MW measure"]
["TOPSD0101","Transmission System coincident maximum demand","MW",8547.9858320000003]
["TOPSD0102","Transmission System coincident weather adjusted maximum demand 10% POE","MW",8993.9025649548839]
["TOPSD0103","Transmission System coincident weather adjusted maximum demand 50% POE","MW",8459.8588966217649]
["TOPSD0104","Transmission System non-coincident summated maximum demand","MW",11973.523917999994]
["TOPSD0105","Transmission System non-coincident weather adjusted summated maximum demand 10% POE","MW",12668.036325870396]
["TOPSD0106","Transmission System non-coincident weather adjusted summated maximum demand 50% POE","MW",11779.631281371067]
[]
[null,"3.4.3.2 - Annual system maximum demand characteristics – MVA measure"]
["TOPSD0201","Transmission System coincident maximum demand","MVA",9125.0755059999992]
["TOPSD0202","Transmission System coincident weather adjusted maximum demand 10% POE","MVA",9584.8471290028792]
["TOPSD0203","Transmission System coincident weather adjusted maximum demand 50% POE","MVA",9034.2104159177634]
["TOPSD0204","Transmission System non-coincident summated maximum demand","MVA",12388.952756999994]
["TOPSD0205","Transmission System non-coincident weather adjusted summated maximum demand 10% POE","MVA",13107.346321838482]
["TOPSD0206","Transmission System non-coincident weather adjusted summated maximum demand 50% POE","MVA",12192.782212193426]
[]
[null,"3.4.3.3 - Power factor"]
[null,"Power factor conversion between MVA and MW"]
["TOPSD0301","Average overall network power factor conversion between MVA and MW","Factor",0.99575199999999997]
["TOPSD0302","Average power factor conversion for 500 kV lines","Factor",0]
["TOPSD0303","Average power factor conversion for 330 kV lines","Factor",0.897702]
["TOPSD0304","Average power factor conversion for  275 kV lines","Factor",0.97329600000000005]
["TOPSD0305","Average power factor conversion for  220 kV lines","Factor",0]
["TOPSD0306","Average power factor conversion for  132 kV lines","Factor",0.99888999999999994]
["TOPSD0307","Average power factor conversion for  110 kV lines","Factor",0.99413700000000005]
["TOPSD0308","Average power factor conversion for  88 kV lines","Factor",0]
["TOPSD0309","Average power factor conversion for  66 kV lines","Factor",0.98087000000000002]
["TOPSD0310","Average power factor conversion for  33 kV lines","Factor",0.99996600000000002]
["TOPSD0311","Average power factor conversion for  22 kV lines","Factor",0.99817699999999998]
["TOPSD0311","Average power factor conversion for  11 kV lines","Factor",0.97724599999999995]
["TOPSD0312","Average power factor conversion for  6.6 kV lines","Factor",0]

{"sheet":"3.5 Physical assets","index":9,"n_rows":74,"n_cols":4,"rows_kept":74,"cut":false,"hidden":false,"merged":[]}
[null,"REGULATORY REPORTING STATEMENT"]
[null,{"$f":"INDEX(dms_TradingNameFull_List,MATCH(dms_TradingName,dms_TradingName_List))","v":"Queensland Electricity Transmission Corporation Limited trading as Powerlink Queensland"}]
[null,{"$f":"CONCATENATE(\"Benchmarking RIN response \",CRY)","v":"Benchmarking RIN response 2016-17"}]
[null,"3.5 PHYSICAL ASSETS"]
[]
[null,"There is ONE table on this worksheet. It has been sub-grouped for ease of navigation. See the Instructions sheet on how to group or ungroup tables. "]
[]
[null,"3.5.1 - TRANSMISSION SYSTEM CAPACITIES "]
[null,null,null,"(0's)"]
[null,null,"Unit",{"$f":"CRY","v":"2016-17"}]
[null,"3.5.1.1 - Overhead network length of circuit at each voltage"]
["TPA0101","500 kV","km",0]
["TPA0102","330 kV","km",602]
["TPA0103","275 kV","km",9368]
["TPA0104","220 kV","km",0]
["TPA0105","132 kV","km",4146]
["TPA0106","110 kV","km",394]
["TPA0107","88 kV","km",0]
["TPA0108","66 kV","km",1]
["TPA0109","33 kV","km",0]
["TPA0109","22 kV","km",0]
["TPA0109","11 kV","km",0]
["TPA01","Total overhead circuit kilometres",null,{"$f":"SUM(D12:D22)","v":14511}]
[]
[null,"3.5.1.2 - Underground cable circuit length at each voltage"]
["TPA0201","500 kV","km",0]
["TPA0202","330 kV","km",0]
["TPA0203","275 kV","km",9.4]
["TPA0204","220 kV","km",0]
["TPA0205","132 kV","km",3.2]
["TPA0206","110 kV","km",7.6]
["TPA0207","88 kV","km",0]
["TPA0208","66 kV","km",1.3]
["TPA0209","33 kV","km",0]
["TPA0210","22 kV","km",0]
["TPA0211","11 kV","km",0]
["TPA02","Total underground circuit kilometres",null,{"$f":"SUM(D26:D36)","v":21.500000000000004}]
[]
[null,"3.5.1.3 - Estimated overhead network weighted average MVA capacity by voltage class"]
["TPA0301","500 kV","MVA",0]
["TPA0302","330 kV","MVA",1236.2]
["TPA0303","275 kV","MVA",814]
["TPA0304","220 kV","MVA",0]
["TPA0305","132 kV","MVA",145.19999999999999]
["TPA0306","110 kV","MVA",168.9]
["TPA0307","88 kV","MVA",0]
["TPA0308","66 kV","MVA",57]
["TPA0309","33 kV","MVA",0]
["TPA0310","22 kV","MVA",0]
["TPA0311","11 kV","MVA",0]
[]
[null,"3.5.1.4 - Estimated underground network weighted average MVA capacity by voltage class"]
["TPA0401","500 kV","MVA",0]
["TPA0402","330 kV","MVA",0]
["TPA0403","275 kV","MVA",568.9]
["TPA0404","220 kV","MVA",0]
["TPA0405","132 kV","MVA",207.9]
["TPA0406","110 kV","MVA",200.8]
["TPA0407","88 kV","MVA",0]
["TPA0408","66 kV","MVA",57]
["TPA0409","33 kV","MVA",0]
["TPA0410","22 kV","MVA",0]
["TPA0411","11 kV","MVA",0]
[]
[null,"3.5.1.5 - Installed transmission system transformer capacity"]
["TPA0501","Transmission substations (eg 500 kV to 330 kV)","MVA",11029]
["TPA0502","Terminal points to DNSP systems","MVA",24447]
["TPA0503","Transformer capacity for directly connected end–users owned by the TNSP","MVA",1987]
["TPA0504","Transformer capacity for directly connected end–users owned by the end–user","MVA",4103]
["TPA0505","Interconnector capacity","MVA",0]
["TPA0506","Other","MVA",3197]
[]
[null,"3.5.1.6 - Cold spare capacity"]
["TPA06","Cold spare capacity included in Table 3.5.1.5","MVA",3220]

{"sheet":"3.6 Quality of services","index":10,"n_rows":60,"n_cols":4,"rows_kept":60,"cut":false,"hidden":false,"merged":[]}
[null,"REGULATORY REPORTING STATEMENT"]
[null,{"$f":"INDEX(dms_TradingNameFull_List,MATCH(dms_TradingName,dms_TradingName_List))","v":"Queensland Electricity Transmission Corporation Limited trading as Powerlink Queensland"}]
[null,{"$f":"CONCATENATE(\"Benchmarking RIN response \",CRY)","v":"Benchmarking RIN response 2016-17"}]
[null,"3.6 QUALITY OF SERVICE DATA"]
[]
[null,"There are THREE tables on this worksheet. Each table has been grouped (and sub-grouped) for ease of navigation. See the Instructions sheet on how to group or ungroup tables. "]
[]
[null,"3.6.1 - SERVICE COMPONENT"]
[null,null,null,"VOLUME"]
[null,null,"Units",{"$f":"CONCATENATE(\"Calendar Year \",(LEFT(dms_RYE,2)&RIGHT(dms_RYE,2)-1))","v":"Calendar Year 2016"}]
[null,"Service Parameter 1 – Average circuit outage rate"]
["TQS0101","Lines outage rate - fault","%",0.162162162162162]
["TQS0102","Number of Lines fault outages","number",48]
["TQS0103","Number of defined Lines","number",296]
["TQS0104","Transformers outage rate - fault","%",0.13372093023255799]
["TQS0105","Number of Transformer fault outages","number",23]
["TQS0106","Number of defined Transformers","number",172]
["TQS0107","Reactive plant outage rate - fault","%",0.25735294117647101]
["TQS0108","Number of Reactive plant fault outages","number",35]
["TQS0109","Number of defined Reactive plant","number",136]
["TQS0110","Lines outage rate – forced outage","%",0.13851351351351299]
["TQS0111","Number of Lines forced outages","number",41]
["TQS0112","Transformer outage rate – forced outage","%",0.145348837209302]
["TQS0113","Number of Transformers forced outages","number",25]
["TQS0114","Reactive plant outage rate – forced outage","%",0.213235294117647]
["TQS0115","Number of Reactive plant forced outages","number",29]
[null,"Service Parameter 2 – Loss of supply event frequency – number in ranges specified"]
["TQS0116","Number of events greater than 0.05 system minutes per annum (X)","number"]
["TQS0117","Number of events greater than 0.1 system minutes per annum (X)","number",0]
["TQS0118","Number of events greater than 0.2 system minutes per annum (X)","number"]
["TQS0119","Number of events greater than 0.25 system minutes per annum (X)","number"]
["TQS0120","Number of events greater than 0.30 system minutes per annum (X)","number"]
["TQS0121","Number of events greater than 0.5 system minutes per annum (X)","number"]
["TQS0122","Number of events greater than 0.75 system minutes per annum (X)","number"]
["TQS0123","Number of events greater than 1.0 system minutes per annum (X)","number"]
["TQS0124","Number of events greater than 0.05 system minutes per annum (Y)","number"]
["TQS0125","Number of events greater than 0.1 system minutes per annum (Y)","number"]
["TQS0126","Number of events greater than 0.2 system minutes per annum (Y)","number"]
["TQS0127","Number of events greater than 0.25 system minutes per annum (Y)","number"]
["TQS0128","Number of events greater than 0.30 system minutes per annum (Y)","number"]
["TQS0129","Number of events greater than 0.5 system minutes per annum (Y)","number"]
["TQS0130","Number of events greater than 0.75 system minutes per annum (Y)","number",0]
["TQS0131","Number of events greater than 1.0 system minutes per annum (Y)","number"]
[null,"Service Parameter 3 – Average outage duration"]
["TQS0118","Average outage duration ","minutes",30.060000000000002]
[null,"Service Parameter 4 – Proper operation of equipment – number of failure events"]
["TQS0119","Failure of protection system","number",20]
["TQS0120","Material failure of Supervisory Control and Data Acquisition (SCADA) system","number",2]
["TQS0121","Incorrect operational isolation of primary or secondary equipment","number",4]
[]
[]
[null,"3.6.2 - MARKET IMPACT COMPONENT"]
[null,null,null,"VOLUME"]
[null,null,null,{"$f":"CONCATENATE(\"Calendar Year \",(LEFT(dms_RYE,2)&RIGHT(dms_RYE,2)-1))","v":"Calendar Year 2016"}]
["TQS02","Market Impact Parameter","Number of dispatch intervals",42]
[]
[null,"3.6.3 - SYSTEM LOSSES"]
[null,null,null,"(per cent)"]
[null,null,null,{"$f":"CONCATENATE(\"Calendar Year \",(LEFT(dms_RYE,2)&RIGHT(dms_RYE,2)-1))","v":"Calendar Year 2016"}]
["TQS03","System losses","%",2.5149295382615983E-2]

{"sheet":"3.7 Operating environment","index":11,"n_rows":26,"n_cols":4,"rows_kept":26,"cut":false,"hidden":false,"merged":[[6,1,6,3],[19,1,19,3]]}
[null,"REGULATORY REPORTING STATEMENT"]
[null,{"$f":"INDEX(dms_TradingNameFull_List,MATCH(dms_TradingName,dms_TradingName_List))","v":"Queensland Electricity Transmission Corporation Limited trading as Powerlink Queensland"}]
[null,{"$f":"CONCATENATE(\"Benchmarking RIN response \",CRY)","v":"Benchmarking RIN response 2016-17"}]
[null,"3.7 OPERATING ENVIRONMENT FACTORS"]
[]
[]
["TEF01","3.7.1 - TERRAIN FACTORS"]
[null,null,null,"(0's)"]
[null,null,"Unit",{"$f":"CRY","v":"2016-17"}]
["TEF0101","Total number of vegetation maintenance spans","Number of spans",7875]
["TEF0102","Average vegetation maintenance span cycle","Years",2.6640000000000001]
["TEF0103","Average number of trees per vegetation maintenance span","Trees",424]
["TEF0104","Average number of defects per vegetation maintenance span","Defects",5.5899999999999998E-2]
["TEF0105","Tropical proportion","Number of spans",5728]
["TEF0106","Standard vehicle access","km",7929]
["TEF0107","Altitude","km",239.5]
["TEF0108","Bushfire risk","Number of spans",879]
[]
[]
["TEF02","3.7.2 - NETWORK CHARACTERISTICS"]
[null,null,null,"(0's)"]
[null,null,null,{"$f":"CRY","v":"2016-17"}]
["TEF0201","Route line length","km",9631]
["TEF0202","Variability of dispatch","%",5.7000000000000002E-2]
["TEF0203","Concentrated load distance","km",565.4]
["TEF0204","Total number of spans","number",23728]

{"sheet":"NSP Amendments","index":12,"n_rows":2,"n_cols":3,"rows_kept":2,"cut":false,"hidden":false,"merged":[[0,1,0,2]]}
[null,{"$f":"CONCATENATE(dms_TradingName,\" data amendments\")","v":"Powerlink data amendments"}]
[null,"Amended Table","Comments"]